Workbook

Sheet Benvenuto
P3: LEGENDA
P4: Campi Non Editabili | Q4: Campi Editabili
P6: Opzioni 20% | Q6: Qtà 20%
P8: Errore nella Selezione | Q8: Verifica Positiva

Sheet Lotto8_C6400_1
J2: Convenzione Tecnologie Server 4 - Lotto 8 | O2: =IF(O4>O6,"Superata Quota 20%","") -> 
O3: Articoli 20% Totali
M4: Totale Altre Opzioni | O4: =Riepilogo_Ordine!K51 -> 0
M5: =Altre_Opzioni!H3 -> 0 | O5: Quota Residua 20 %
L6: Guida alla Convenzione | M6: Totale Configurazione | O6: =Riepilogo_Ordine!G52 -> 0
M7: =M77+M78 -> 0 | O7: Totale Ordine Iva Esclusa
J8: DELL POWEREDGE C6400 4 x C6525 | L8: Quantità Server | M8: 0 | O8: =Riepilogo_Ordine!K52 -> 0
J12: Base
J13: POWEREDGE C6400-R Enclosure | L13: =IF($M$8>0,VLOOKUP(J13,ConfigurationTS4L8!1:3,13),"") ->  | M13: =IF($M$8>0,1,"") ->  | O13: =IF(M8>0,S13,"") ->  | S13: =VLOOKUP($J13,TS4L8_SRV,10,FALSE) -> 10030.79 | U13: =VLOOKUP($J13,TS4L8_SRV,12,FALSE) -> L8N01
J14: PowerEdge C6525 | M14: =IF($M$13>0,4,"") -> 4
J16: Chassis Configuration
J17: Chassis with up to 24x2.5" Drives
J19: Processor
J20: AMD7413 2.65GHz,24C/48T,128M,180W,3200 | L20: =VLOOKUP($J$20,TS4L8_CPU,13,FALSE) -> TS4L8-CPU | M20: =VLOOKUP($J$20,TS4L8_CPU,7,FALSE) -> 4 | S20: =VLOOKUP($J$20,TS4L8_CPU,11,FALSE) -> 0 | T20: =VLOOKUP($J$20,TS4L8_CPU,11,FALSE) -> 0 | U20: =VLOOKUP($J$20,TS4L8_CPU,11,FALSE) -> 0
J22: Additional Processor
J23: No Additional Processor | L23: =VLOOKUP($J$23,ConfigurationTS4L8!1:1048576,13,FALSE) ->  | M23: =VLOOKUP($J$23,TS4L8_CPU,7,FALSE) -> 0 | O23: =S23 -> 0 | S23: =VLOOKUP($J$23,TS4L8_CPU,10,FALSE) -> 0 | T23: =VLOOKUP($J$20,TS4L8_CPU,11,FALSE) -> 0 | U23: =IF(J23="No Additional Processor","",VLOOKUP($J$20,TS4L8_CPU,12,FALSE)) -> 
U24: =IF(L24="TS3L4-CPU","L4N02",0) -> 0
J25: Memory Capacity (GB) | M25: =IF(AND(M26<6,M23>0),"Selezionare Ram Corretta",IF(AND(M23=0,M26>4),"Selezionare Ram Corretta","")) -> 
J26: 128GB Totali per Nodo | L26: =IF($M$23>0,VLOOKUP($J$26,TS4L8_RAM,13,),VLOOKUP($J$26,TS4L8_RAM,13,)) -> TS4L8-RAM32 | M26: =IF($M$23>0,VLOOKUP($J$26,TS4L8_RAM,7,FALSE),VLOOKUP($J$26,TS4L8_RAM,7,FALSE)) -> 0 | O26: =S26 -> 0 | S26: =IF($M$23>0,VLOOKUP($J$26,TS4L8_RAM,10,FALSE),VLOOKUP($J$26,TS4L8_RAM,10,FALSE)) -> 0 | U26: =IF($M$23>0,VLOOKUP($J$26,TS4L8_RAM,12,FALSE),VLOOKUP($J$26,TS4L8_RAM,12,FALSE)) -> L8N03
J28: Operating System STANDARD
J29: No Operating System | L29: =VLOOKUP($J$29,TS4L8_OS,13,FALSE) ->  | M29: =IF(J29="Ubuntu 22.04 LTS 64 Bit",4,"") ->  | O29: =S29 -> 0 | S29: =VLOOKUP($J$29,TS4L8_OS,10,FALSE)*4 -> 0 | T29: =VLOOKUP($J$29,TS4L8_OS,11,FALSE) -> 0 | U29: =VLOOKUP($J$29,TS4L8_OS,12,FALSE) -> 
J32: Disk Controller
J33: No Controller | L33: =VLOOKUP($J$33,TS4L8_DiskController,13,FALSE) ->  | M33: =VLOOKUP($J$33,TS4L8_DiskController,7,FALSE) -> 0
O34: =IF(AND(M33>0,M66>0),"Deselezionare Slot PCI","") -> 
J35: Hard Drive Enclosure | L35: Usati | M35: Disponibili
L36: =SUM(M40:M58)*4 -> 8 | M36: =24-L36 -> 16
J37: Hard Drivers Bays n° 6 per ogni nodo - 2 bay occupate dai dischi 960GB SSD di base | L37: Usati | M37: Disponibili | R37: =M40+M33 -> 2
L38: =M40+M42+M44+M50+M52+M54+M56+M58+M46+M48 -> 2 | M38: =6-L38 -> 4
O39: =IF(M33=0,"Selezionare Disk Controller H350 per aggiungere dischi","") -> Selezionare Disk Controller H350 per aggiungere dischi
J40: 960GB SSD SATA Read Intensive 6Gbps | M40: 2
J42: =ConfigurationTS4L8!A45 -> 3.84TB SSD SATA Read Intensive 6Gbps 512e 2.5in Hot-Plug | L42: =VLOOKUP($J42,TS4L8_HDD,13,FALSE) -> TS4L8-SSD3.84RI | M42: 0 | O42: =S42+T42 -> 0 | T42: =VLOOKUP($J42,TS4L8_HDD,10,FALSE)*M42 -> 0 | U42: =VLOOKUP($J42,TS4L8_HDD,12,FALSE) -> L8N24
J44: =ConfigurationTS4L8!A47 -> 1.92TB SSD SATA Read Intensive 6Gbps 512e 2.5in Hot-Plug | L44: =VLOOKUP($J44,TS4L8_HDD,13,FALSE) -> TS4L8-SSD1.92RI | M44: 0 | O44: =S44+T44 -> 0 | T44: =VLOOKUP($J44,TS4L8_HDD,10,FALSE)*M44 -> 0 | U44: =VLOOKUP($J44,TS4L8_HDD,12,FALSE) -> L8N25
J46: =ConfigurationTS4L8!D31 -> 2.4TB 10k 512e SAS ISE 12Gbps 2.5in Hot Plug Hard Drive | L46: =VLOOKUP($J46,TS4L8_HDD,13,FALSE) -> TS4L8-HDD2TB | M46: 0 | O46: =S46 -> 0 | S46: =VLOOKUP($J46,TS4L8_HDD,10,FALSE)*M46 -> 0 | T46: =VLOOKUP($J46,TS4L8_HDD,11,FALSE) -> 0 | U46: =VLOOKUP($J46,TS4L8_HDD,12,FALSE) -> L8N10
J48: =ConfigurationTS4L8!A33 -> 1.2TB 10K RPM SAS ISE 12Gbps 512n 2.5in Hot-plug Hard Drive | L48: =VLOOKUP($J48,TS4L8_HDD,13,FALSE) -> TS4L8-HDD1TB | M48: 0 | O48: =S48 -> 0 | S48: =VLOOKUP($J48,TS4L8_HDD,10,FALSE)*M48 -> 0 | T48: =VLOOKUP($J48,TS4L8_HDD,11,FALSE) -> 0 | U48: =VLOOKUP($J48,TS4L8_HDD,12,FALSE) -> L8N09
J50: =Tabella_prezzi!H15 -> 1.92TB SSD SAS ISE RI 12Gbps 512e 2.5in Hot-Plug 1 DWP | L50: =VLOOKUP($J50,TS4L8_HDD,13,FALSE) -> TS4L8-RI1600GB | M50: 0 | O50: =S50 -> 0 | S50: =VLOOKUP($J50,TS4L8_HDD,10,FALSE)*M50 -> 0 | T50: =VLOOKUP($J50,TS4L8_HDD,11,FALSE) -> 0 | U50: =VLOOKUP($J50,TS4L8_HDD,12,FALSE) -> L8N11
J52: =ConfigurationTS4L8!A37 -> 3.84TB SSD SAS ISE RI 12Gbps 512e 2.5in PM6 Hot-Plug 1 DWPD | L52: =VLOOKUP($J52,TS4L8_HDD,13,FALSE) -> TS4L8-RI3,8TB | M52: 0 | O52: =S52 -> 0 | S52: =VLOOKUP($J52,TS4L8_HDD,10,FALSE)*M52 -> 0 | T52: =VLOOKUP($J52,TS4L8_HDD,11,FALSE) -> 0 | U52: =VLOOKUP($J52,TS4L8_HDD,12,FALSE) -> L8N12
J54: =ConfigurationTS4L8!A39 -> 1.6TB SSD SAS ISE MU 12Gbps 512e 2.5in Hot-Plug PM6 3 DWPD | L54: =VLOOKUP($J54,TS4L8_HDD,13,FALSE) -> TS4L8-MU1.6TB | M54: 0 | O54: =S54 -> 0 | S54: =VLOOKUP($J54,TS4L8_HDD,10,FALSE)*M54 -> 0 | T54: =VLOOKUP($J54,TS4L8_HDD,11,FALSE) -> 0 | U54: =VLOOKUP($J54,TS4L8_HDD,12,FALSE) -> L8N13
J56: =ConfigurationTS4L8!A41 -> 960GB SSD SAS ISE RI 12Gbps 512e 2.5in Hot-Plug 1 DWPD | L56: =VLOOKUP($J56,TS4L8_HDD,13,FALSE) -> TS4L8-RI800GB | M56: 0 | O56: =S56 -> 0 | S56: =VLOOKUP($J56,TS4L8_HDD,10,FALSE)*M56 -> 0 | T56: =VLOOKUP($J56,TS4L8_HDD,11,FALSE) -> 0 | U56: =VLOOKUP($J56,TS4L8_HDD,12,FALSE) -> L8N14
J58: =ConfigurationTS4L8!A43 -> SSD 960GB SAS RI 12Gbps 2.5in Hot-plug, 1 DWPD | L58: =VLOOKUP($J58,TS4L8_HDD,13,FALSE) -> TS4L8-MU800GB | M58: 0 | O58: =S58 -> 0 | S58: =VLOOKUP($J58,TS4L8_HDD,10,FALSE)*M58 -> 0 | T58: =VLOOKUP($J58,TS4L8_HDD,11,FALSE) -> 0 | U58: =VLOOKUP($J58,TS4L8_HDD,12,FALSE) -> L8N15
J60: Embedded Systems Management
J61: iDRAC9,Enterprise
J65: PCI Slot 1 Processor 1 x8 PCIe Gen4 for HL/FH
L66: =VLOOKUP($J66,TS4L8_PCI,13,FALSE) ->  | M66: =VLOOKUP($J66,TS4L8_PCI,7,FALSE) -> 0 | O66: =S66+T66 -> 0 | S66: =VLOOKUP($J66,TS4L8_PCI,10,FALSE)*M66 -> 0 | T66: =VLOOKUP($J66,TS4L8_PCI,11,FALSE)*M66 -> 0 | U66: =VLOOKUP($J66,TS4L8_PCI,12,FALSE) -> 
J68: SFP100GBs
J69: =ConfigurationTS4L8!A62 -> Dell EMC PowerEdge QSFP28 SR4 100GbE 85C optic | L69: =VLOOKUP($J69,TS4L8_SFP,13,FALSE) -> TS4L8-OT100GB | M69: 0 | O69: =S69+T69 -> 0 | S69: =VLOOKUP($J69,TS4L8_SFP,10,FALSE)*M69 -> 0 | T69: =VLOOKUP($J69,TS4L8_SFP,11,FALSE)*M69 -> 0 | U69: =VLOOKUP($J69,TS4L8_SFP,12,FALSE) -> L8N28
J71: Garanzia
J72: Manutenzione in garanzia (36 mesi) | L72: =VLOOKUP($J72,TS4L8_GARANZIA,13,FALSE) ->  | M72: =VLOOKUP($J72,TS4L8_GARANZIA,7,FALSE) ->  | O72: =S72 -> 0 | S72: =VLOOKUP($J72,TS4L8_GARANZIA,10,FALSE) -> 0 | T72: =VLOOKUP($J72,TS4L8_GARANZIA,11,FALSE) -> 0 | U72: =VLOOKUP($J72,TS4L8_GARANZIA,12,FALSE) -> 
J74: Hard Disk Retention | M74: =IF(AND(J75="Hard Disk Retention 60 mesi",M72=""),"Selezionare Garanzia 60 Mesi","") -> 
L75: =VLOOKUP($J75,TS4L8_HDDRET,13,FALSE) ->  | M75: =VLOOKUP($J75,TS4L8_HDDRET,7,FALSE) -> 0 | O75: =S75 -> 0 | S75: =VLOOKUP($J75,TS4L8_HDDRET,10,FALSE) -> 0 | T75: =VLOOKUP($J75,TS4L8_HDDRET,11,FALSE) -> 0 | U75: =VLOOKUP($J75,TS4L8_HDDRET,12,FALSE) -> 
L77: Configurazione | M77: =SUM(S13:S75)*M8 -> 0
L78: 0.2 | M78: =SUM(T13:T75)*M8 -> 0
L79: Totale | M79: =SUM(M77:M78) -> 0
J81: NOTE

Sheet Lotto8_C6400_2
J2: Convenzione Tecnologie Server 4 - Lotto 8 | O2: =IF(O4>O6,"Superata Quota 20%","") -> 
O3: Articoli 20% Totali
M4: Totale Altre Opzioni | O4: =Riepilogo_Ordine!K51 -> 0
M5: =Altre_Opzioni!H3 -> 0 | O5: Quota Residua 20 %
L6: Guida alla Convenzione | M6: Totale Configurazione | O6: =Riepilogo_Ordine!G52 -> 0
M7: =M77+M78 -> 0 | O7: Totale Ordine Iva Esclusa
J8: DELL POWEREDGE C6400 4 x C6525 | L8: Quantità Server | M8: 0 | O8: =Riepilogo_Ordine!K52 -> 0
J12: Base
J13: POWEREDGE C6400-R Enclosure | L13: =IF($M$8>0,VLOOKUP(J13,ConfigurationTS4L8!1:3,13),"") ->  | M13: =IF($M$8>0,1,"") ->  | O13: =IF(M8>0,S13,"") ->  | S13: =VLOOKUP($J13,TS4L8_SRV,10,FALSE) -> 10030.79 | U13: =VLOOKUP($J13,TS4L8_SRV,12,FALSE) -> L8N01
J14: PowerEdge C6525 | M14: =IF($M$13>0,4,"") -> 4
J16: Chassis Configuration
J17: Chassis with up to 24x2.5" Drives
J19: Processor
J20: AMD7413 2.65GHz,24C/48T,128M,180W,3200 | L20: =VLOOKUP($J$20,TS4L8_CPU,13,FALSE) -> TS4L8-CPU | M20: =VLOOKUP($J$20,TS4L8_CPU,7,FALSE) -> 4 | S20: =VLOOKUP($J$20,TS4L8_CPU,11,FALSE) -> 0 | T20: =VLOOKUP($J$20,TS4L8_CPU,11,FALSE) -> 0 | U20: =VLOOKUP($J$20,TS4L8_CPU,11,FALSE) -> 0
J22: Additional Processor
J23: No Additional Processor | L23: =VLOOKUP($J$23,ConfigurationTS4L8!1:1048576,13,FALSE) ->  | M23: =VLOOKUP($J$23,TS4L8_CPU,7,FALSE) -> 0 | O23: =S23 -> 0 | S23: =VLOOKUP($J$23,TS4L8_CPU,10,FALSE) -> 0 | T23: =VLOOKUP($J$20,TS4L8_CPU,11,FALSE) -> 0 | U23: =IF(J23="No Additional Processor","",VLOOKUP($J$20,TS4L8_CPU,12,FALSE)) -> 
U24: =IF(L24="TS3L4-CPU","L4N02",0) -> 0
J25: Memory Capacity (GB) | M25: =IF(AND(M26<6,M23>0),"Selezionare Ram Corretta",IF(AND(M23=0,M26>4),"Selezionare Ram Corretta","")) -> 
J26: 128GB Totali per Nodo | L26: =IF($M$23>0,VLOOKUP($J$26,TS4L8_RAM,13,),VLOOKUP($J$26,TS4L8_RAM,13,)) -> TS4L8-RAM32 | M26: =IF($M$23>0,VLOOKUP($J$26,TS4L8_RAM,7,FALSE),VLOOKUP($J$26,TS4L8_RAM,7,FALSE)) -> 0 | O26: =S26 -> 0 | S26: =IF($M$23>0,VLOOKUP($J$26,TS4L8_RAM,10,FALSE),VLOOKUP($J$26,TS4L8_RAM,10,FALSE)) -> 0 | U26: =IF($M$23>0,VLOOKUP($J$26,TS4L8_RAM,12,FALSE),VLOOKUP($J$26,TS4L8_RAM,12,FALSE)) -> L8N03
J28: Operating System STANDARD
J29: No Operating System | L29: =VLOOKUP($J$29,TS4L8_OS,13,FALSE) ->  | M29: =IF(J29="Ubuntu 22.04 LTS 64 Bit",4,"") ->  | O29: =S29 -> 0 | S29: =VLOOKUP($J$29,TS4L8_OS,10,FALSE)*4 -> 0 | T29: =VLOOKUP($J$29,TS4L8_OS,11,FALSE) -> 0 | U29: =VLOOKUP($J$29,TS4L8_OS,12,FALSE) -> 
J32: Disk Controller
J33: No Controller | L33: =VLOOKUP($J$33,TS4L8_DiskController,13,FALSE) ->  | M33: =VLOOKUP($J$33,TS4L8_DiskController,7,FALSE) -> 0
O34: =IF(AND(M33>0,M66>0),"Deselezionare Slot PCI","") -> 
J35: Hard Drive Enclosure | L35: Usati | M35: Disponibili
L36: =SUM(M40:M58)*4 -> 8 | M36: =24-L36 -> 16
J37: Hard Drivers Bays n° 6 per ogni nodo - 2 bay occupate dai dischi 960GB SSD di base | L37: Usati | M37: Disponibili | R37: =M40+M33 -> 2
L38: =M40+M42+M44+M50+M52+M54+M56+M58+M46+M48 -> 2 | M38: =6-L38 -> 4
O39: =IF(M33=0,"Selezionare Disk Controller H350 per aggiungere dischi","") -> Selezionare Disk Controller H350 per aggiungere dischi
J40: 960GB SSD SATA Read Intensive 6Gbps | M40: 2
J42: =ConfigurationTS4L8!A45 -> 3.84TB SSD SATA Read Intensive 6Gbps 512e 2.5in Hot-Plug | L42: =VLOOKUP($J42,TS4L8_HDD,13,FALSE) -> TS4L8-SSD3.84RI | M42: 0 | O42: =S42+T42 -> 0 | T42: =VLOOKUP($J42,TS4L8_HDD,10,FALSE)*M42 -> 0 | U42: =VLOOKUP($J42,TS4L8_HDD,12,FALSE) -> L8N24
J44: =ConfigurationTS4L8!A47 -> 1.92TB SSD SATA Read Intensive 6Gbps 512e 2.5in Hot-Plug | L44: =VLOOKUP($J44,TS4L8_HDD,13,FALSE) -> TS4L8-SSD1.92RI | M44: 0 | O44: =S44+T44 -> 0 | T44: =VLOOKUP($J44,TS4L8_HDD,10,FALSE)*M44 -> 0 | U44: =VLOOKUP($J44,TS4L8_HDD,12,FALSE) -> L8N25
J46: =ConfigurationTS4L8!D31 -> 2.4TB 10k 512e SAS ISE 12Gbps 2.5in Hot Plug Hard Drive | L46: =VLOOKUP($J46,TS4L8_HDD,13,FALSE) -> TS4L8-HDD2TB | M46: 0 | O46: =S46 -> 0 | S46: =VLOOKUP($J46,TS4L8_HDD,10,FALSE)*M46 -> 0 | T46: =VLOOKUP($J46,TS4L8_HDD,11,FALSE) -> 0 | U46: =VLOOKUP($J46,TS4L8_HDD,12,FALSE) -> L8N10
J48: =ConfigurationTS4L8!A33 -> 1.2TB 10K RPM SAS ISE 12Gbps 512n 2.5in Hot-plug Hard Drive | L48: =VLOOKUP($J48,TS4L8_HDD,13,FALSE) -> TS4L8-HDD1TB | M48: 0 | O48: =S48 -> 0 | S48: =VLOOKUP($J48,TS4L8_HDD,10,FALSE)*M48 -> 0 | T48: =VLOOKUP($J48,TS4L8_HDD,11,FALSE) -> 0 | U48: =VLOOKUP($J48,TS4L8_HDD,12,FALSE) -> L8N09
J50: =Tabella_prezzi!H15 -> 1.92TB SSD SAS ISE RI 12Gbps 512e 2.5in Hot-Plug 1 DWP | L50: =VLOOKUP($J50,TS4L8_HDD,13,FALSE) -> TS4L8-RI1600GB | M50: 0 | O50: =S50 -> 0 | S50: =VLOOKUP($J50,TS4L8_HDD,10,FALSE)*M50 -> 0 | T50: =VLOOKUP($J50,TS4L8_HDD,11,FALSE) -> 0 | U50: =VLOOKUP($J50,TS4L8_HDD,12,FALSE) -> L8N11
J52: =ConfigurationTS4L8!A37 -> 3.84TB SSD SAS ISE RI 12Gbps 512e 2.5in PM6 Hot-Plug 1 DWPD | L52: =VLOOKUP($J52,TS4L8_HDD,13,FALSE) -> TS4L8-RI3,8TB | M52: 0 | O52: =S52 -> 0 | S52: =VLOOKUP($J52,TS4L8_HDD,10,FALSE)*M52 -> 0 | T52: =VLOOKUP($J52,TS4L8_HDD,11,FALSE) -> 0 | U52: =VLOOKUP($J52,TS4L8_HDD,12,FALSE) -> L8N12
J54: =ConfigurationTS4L8!A39 -> 1.6TB SSD SAS ISE MU 12Gbps 512e 2.5in Hot-Plug PM6 3 DWPD | L54: =VLOOKUP($J54,TS4L8_HDD,13,FALSE) -> TS4L8-MU1.6TB | M54: 0 | O54: =S54 -> 0 | S54: =VLOOKUP($J54,TS4L8_HDD,10,FALSE)*M54 -> 0 | T54: =VLOOKUP($J54,TS4L8_HDD,11,FALSE) -> 0 | U54: =VLOOKUP($J54,TS4L8_HDD,12,FALSE) -> L8N13
J56: =ConfigurationTS4L8!A41 -> 960GB SSD SAS ISE RI 12Gbps 512e 2.5in Hot-Plug 1 DWPD | L56: =VLOOKUP($J56,TS4L8_HDD,13,FALSE) -> TS4L8-RI800GB | M56: 0 | O56: =S56 -> 0 | S56: =VLOOKUP($J56,TS4L8_HDD,10,FALSE)*M56 -> 0 | T56: =VLOOKUP($J56,TS4L8_HDD,11,FALSE) -> 0 | U56: =VLOOKUP($J56,TS4L8_HDD,12,FALSE) -> L8N14
J58: =ConfigurationTS4L8!A43 -> SSD 960GB SAS RI 12Gbps 2.5in Hot-plug, 1 DWPD | L58: =VLOOKUP($J58,TS4L8_HDD,13,FALSE) -> TS4L8-MU800GB | M58: 0 | O58: =S58 -> 0 | S58: =VLOOKUP($J58,TS4L8_HDD,10,FALSE)*M58 -> 0 | T58: =VLOOKUP($J58,TS4L8_HDD,11,FALSE) -> 0 | U58: =VLOOKUP($J58,TS4L8_HDD,12,FALSE) -> L8N15
J60: Embedded Systems Management
J61: iDRAC9,Enterprise
J65: PCI Slot 1 Processor 1 x8 PCIe Gen4 for HL/FH
L66: =VLOOKUP($J66,TS4L8_PCI,13,FALSE) ->  | M66: =VLOOKUP($J66,TS4L8_PCI,7,FALSE) -> 0 | O66: =S66+T66 -> 0 | S66: =VLOOKUP($J66,TS4L8_PCI,10,FALSE)*M66 -> 0 | T66: =VLOOKUP($J66,TS4L8_PCI,11,FALSE)*M66 -> 0 | U66: =VLOOKUP($J66,TS4L8_PCI,12,FALSE) -> 
J68: SFP100GBs
J69: =ConfigurationTS4L8!A62 -> Dell EMC PowerEdge QSFP28 SR4 100GbE 85C optic | L69: =VLOOKUP($J69,TS4L8_SFP,13,FALSE) -> TS4L8-OT100GB | M69: 0 | O69: =S69+T69 -> 0 | S69: =VLOOKUP($J69,TS4L8_SFP,10,FALSE)*M69 -> 0 | T69: =VLOOKUP($J69,TS4L8_SFP,11,FALSE)*M69 -> 0 | U69: =VLOOKUP($J69,TS4L8_SFP,12,FALSE) -> L8N28
J71: Garanzia
J72: Manutenzione in garanzia (36 mesi) | L72: =VLOOKUP($J72,TS4L8_GARANZIA,13,FALSE) ->  | M72: =VLOOKUP($J72,TS4L8_GARANZIA,7,FALSE) ->  | O72: =S72 -> 0 | S72: =VLOOKUP($J72,TS4L8_GARANZIA,10,FALSE) -> 0 | T72: =VLOOKUP($J72,TS4L8_GARANZIA,11,FALSE) -> 0 | U72: =VLOOKUP($J72,TS4L8_GARANZIA,12,FALSE) -> 
J74: Hard Disk Retention | M74: =IF(AND(J75="Hard Disk Retention 60 mesi",M72=""),"Selezionare Garanzia 60 Mesi","") -> 
L75: =VLOOKUP($J75,TS4L8_HDDRET,13,FALSE) ->  | M75: =VLOOKUP($J75,TS4L8_HDDRET,7,FALSE) -> 0 | O75: =S75 -> 0 | S75: =VLOOKUP($J75,TS4L8_HDDRET,10,FALSE) -> 0 | T75: =VLOOKUP($J75,TS4L8_HDDRET,11,FALSE) -> 0 | U75: =VLOOKUP($J75,TS4L8_HDDRET,12,FALSE) -> 
L77: Configurazione | M77: =SUM(S13:S75)*M8 -> 0
L78: 0.2 | M78: =SUM(T13:T75)*M8 -> 0
L79: Totale | M79: =SUM(M77:M78) -> 0
J81: NOTE

Sheet Lotto8_C6400_3
J2: Convenzione Tecnologie Server 4 - Lotto 8 | O2: =IF(O4>O6,"Superata Quota 20%","") -> 
O3: Articoli 20% Totali
M4: Totale Altre Opzioni | O4: =Riepilogo_Ordine!K51 -> 0
M5: =Altre_Opzioni!H3 -> 0 | O5: Quota Residua 20 %
L6: Guida alla Convenzione | M6: Totale Configurazione | O6: =Riepilogo_Ordine!G52 -> 0
M7: =M77+M78 -> 0 | O7: Totale Ordine Iva Esclusa
J8: DELL POWEREDGE C6400 4 x C6525 | L8: Quantità Server | M8: 0 | O8: =Riepilogo_Ordine!K52 -> 0
J12: Base
J13: POWEREDGE C6400-R Enclosure | L13: =IF($M$8>0,VLOOKUP(J13,ConfigurationTS4L8!1:3,13),"") ->  | M13: =IF($M$8>0,1,"") ->  | O13: =IF(M8>0,S13,"") ->  | S13: =VLOOKUP($J13,TS4L8_SRV,10,FALSE) -> 10030.79 | U13: =VLOOKUP($J13,TS4L8_SRV,12,FALSE) -> L8N01
J14: PowerEdge C6525 | M14: =IF($M$13>0,4,"") -> 4
J16: Chassis Configuration
J17: Chassis with up to 24x2.5" Drives
J19: Processor
J20: AMD7413 2.65GHz,24C/48T,128M,180W,3200 | L20: =VLOOKUP($J$20,TS4L8_CPU,13,FALSE) -> TS4L8-CPU | M20: =VLOOKUP($J$20,TS4L8_CPU,7,FALSE) -> 4 | S20: =VLOOKUP($J$20,TS4L8_CPU,11,FALSE) -> 0 | T20: =VLOOKUP($J$20,TS4L8_CPU,11,FALSE) -> 0 | U20: =VLOOKUP($J$20,TS4L8_CPU,11,FALSE) -> 0
J22: Additional Processor
J23: No Additional Processor | L23: =VLOOKUP($J$23,ConfigurationTS4L8!1:1048576,13,FALSE) ->  | M23: =VLOOKUP($J$23,TS4L8_CPU,7,FALSE) -> 0 | O23: =S23 -> 0 | S23: =VLOOKUP($J$23,TS4L8_CPU,10,FALSE) -> 0 | T23: =VLOOKUP($J$20,TS4L8_CPU,11,FALSE) -> 0 | U23: =IF(J23="No Additional Processor","",VLOOKUP($J$20,TS4L8_CPU,12,FALSE)) -> 
U24: =IF(L24="TS3L4-CPU","L4N02",0) -> 0
J25: Memory Capacity (GB) | M25: =IF(AND(M26<6,M23>0),"Selezionare Ram Corretta",IF(AND(M23=0,M26>4),"Selezionare Ram Corretta","")) -> 
J26: 128GB Totali per Nodo | L26: =IF($M$23>0,VLOOKUP($J$26,TS4L8_RAM,13,),VLOOKUP($J$26,TS4L8_RAM,13,)) -> TS4L8-RAM32 | M26: =IF($M$23>0,VLOOKUP($J$26,TS4L8_RAM,7,FALSE),VLOOKUP($J$26,TS4L8_RAM,7,FALSE)) -> 0 | O26: =S26 -> 0 | S26: =IF($M$23>0,VLOOKUP($J$26,TS4L8_RAM,10,FALSE),VLOOKUP($J$26,TS4L8_RAM,10,FALSE)) -> 0 | U26: =IF($M$23>0,VLOOKUP($J$26,TS4L8_RAM,12,FALSE),VLOOKUP($J$26,TS4L8_RAM,12,FALSE)) -> L8N03
J28: Operating System STANDARD
J29: No Operating System | L29: =VLOOKUP($J$29,TS4L8_OS,13,FALSE) ->  | M29: =IF(J29="Ubuntu 22.04 LTS 64 Bit",4,"") ->  | O29: =S29 -> 0 | S29: =VLOOKUP($J$29,TS4L8_OS,10,FALSE)*4 -> 0 | T29: =VLOOKUP($J$29,TS4L8_OS,11,FALSE) -> 0 | U29: =VLOOKUP($J$29,TS4L8_OS,12,FALSE) -> 
J32: Disk Controller
J33: No Controller | L33: =VLOOKUP($J$33,TS4L8_DiskController,13,FALSE) ->  | M33: =VLOOKUP($J$33,TS4L8_DiskController,7,FALSE) -> 0
O34: =IF(AND(M33>0,M66>0),"Deselezionare Slot PCI","") -> 
J35: Hard Drive Enclosure | L35: Usati | M35: Disponibili
L36: =SUM(M40:M58)*4 -> 8 | M36: =24-L36 -> 16
J37: Hard Drivers Bays n° 6 per ogni nodo - 2 bay occupate dai dischi 960GB SSD di base | L37: Usati | M37: Disponibili | R37: =M40+M33 -> 2
L38: =M40+M42+M44+M50+M52+M54+M56+M58+M46+M48 -> 2 | M38: =6-L38 -> 4
O39: =IF(M33=0,"Selezionare Disk Controller H350 per aggiungere dischi","") -> Selezionare Disk Controller H350 per aggiungere dischi
J40: 960GB SSD SATA Read Intensive 6Gbps | M40: 2
J42: =ConfigurationTS4L8!A45 -> 3.84TB SSD SATA Read Intensive 6Gbps 512e 2.5in Hot-Plug | L42: =VLOOKUP($J42,TS4L8_HDD,13,FALSE) -> TS4L8-SSD3.84RI | M42: 0 | O42: =S42+T42 -> 0 | T42: =VLOOKUP($J42,TS4L8_HDD,10,FALSE)*M42 -> 0 | U42: =VLOOKUP($J42,TS4L8_HDD,12,FALSE) -> L8N24
J44: =ConfigurationTS4L8!A47 -> 1.92TB SSD SATA Read Intensive 6Gbps 512e 2.5in Hot-Plug | L44: =VLOOKUP($J44,TS4L8_HDD,13,FALSE) -> TS4L8-SSD1.92RI | M44: 0 | O44: =S44+T44 -> 0 | T44: =VLOOKUP($J44,TS4L8_HDD,10,FALSE)*M44 -> 0 | U44: =VLOOKUP($J44,TS4L8_HDD,12,FALSE) -> L8N25
J46: =ConfigurationTS4L8!D31 -> 2.4TB 10k 512e SAS ISE 12Gbps 2.5in Hot Plug Hard Drive | L46: =VLOOKUP($J46,TS4L8_HDD,13,FALSE) -> TS4L8-HDD2TB | M46: 0 | O46: =S46 -> 0 | S46: =VLOOKUP($J46,TS4L8_HDD,10,FALSE)*M46 -> 0 | T46: =VLOOKUP($J46,TS4L8_HDD,11,FALSE) -> 0 | U46: =VLOOKUP($J46,TS4L8_HDD,12,FALSE) -> L8N10
J48: =ConfigurationTS4L8!A33 -> 1.2TB 10K RPM SAS ISE 12Gbps 512n 2.5in Hot-plug Hard Drive | L48: =VLOOKUP($J48,TS4L8_HDD,13,FALSE) -> TS4L8-HDD1TB | M48: 0 | O48: =S48 -> 0 | S48: =VLOOKUP($J48,TS4L8_HDD,10,FALSE)*M48 -> 0 | T48: =VLOOKUP($J48,TS4L8_HDD,11,FALSE) -> 0 | U48: =VLOOKUP($J48,TS4L8_HDD,12,FALSE) -> L8N09
J50: =Tabella_prezzi!H15 -> 1.92TB SSD SAS ISE RI 12Gbps 512e 2.5in Hot-Plug 1 DWP | L50: =VLOOKUP($J50,TS4L8_HDD,13,FALSE) -> TS4L8-RI1600GB | M50: 0 | O50: =S50 -> 0 | S50: =VLOOKUP($J50,TS4L8_HDD,10,FALSE)*M50 -> 0 | T50: =VLOOKUP($J50,TS4L8_HDD,11,FALSE) -> 0 | U50: =VLOOKUP($J50,TS4L8_HDD,12,FALSE) -> L8N11
J52: =ConfigurationTS4L8!A37 -> 3.84TB SSD SAS ISE RI 12Gbps 512e 2.5in PM6 Hot-Plug 1 DWPD | L52: =VLOOKUP($J52,TS4L8_HDD,13,FALSE) -> TS4L8-RI3,8TB | M52: 0 | O52: =S52 -> 0 | S52: =VLOOKUP($J52,TS4L8_HDD,10,FALSE)*M52 -> 0 | T52: =VLOOKUP($J52,TS4L8_HDD,11,FALSE) -> 0 | U52: =VLOOKUP($J52,TS4L8_HDD,12,FALSE) -> L8N12
J54: =ConfigurationTS4L8!A39 -> 1.6TB SSD SAS ISE MU 12Gbps 512e 2.5in Hot-Plug PM6 3 DWPD | L54: =VLOOKUP($J54,TS4L8_HDD,13,FALSE) -> TS4L8-MU1.6TB | M54: 0 | O54: =S54 -> 0 | S54: =VLOOKUP($J54,TS4L8_HDD,10,FALSE)*M54 -> 0 | T54: =VLOOKUP($J54,TS4L8_HDD,11,FALSE) -> 0 | U54: =VLOOKUP($J54,TS4L8_HDD,12,FALSE) -> L8N13
J56: =ConfigurationTS4L8!A41 -> 960GB SSD SAS ISE RI 12Gbps 512e 2.5in Hot-Plug 1 DWPD | L56: =VLOOKUP($J56,TS4L8_HDD,13,FALSE) -> TS4L8-RI800GB | M56: 0 | O56: =S56 -> 0 | S56: =VLOOKUP($J56,TS4L8_HDD,10,FALSE)*M56 -> 0 | T56: =VLOOKUP($J56,TS4L8_HDD,11,FALSE) -> 0 | U56: =VLOOKUP($J56,TS4L8_HDD,12,FALSE) -> L8N14
J58: =ConfigurationTS4L8!A43 -> SSD 960GB SAS RI 12Gbps 2.5in Hot-plug, 1 DWPD | L58: =VLOOKUP($J58,TS4L8_HDD,13,FALSE) -> TS4L8-MU800GB | M58: 0 | O58: =S58 -> 0 | S58: =VLOOKUP($J58,TS4L8_HDD,10,FALSE)*M58 -> 0 | T58: =VLOOKUP($J58,TS4L8_HDD,11,FALSE) -> 0 | U58: =VLOOKUP($J58,TS4L8_HDD,12,FALSE) -> L8N15
J60: Embedded Systems Management
J61: iDRAC9,Enterprise
J65: PCI Slot 1 Processor 1 x8 PCIe Gen4 for HL/FH
L66: =VLOOKUP($J66,TS4L8_PCI,13,FALSE) ->  | M66: =VLOOKUP($J66,TS4L8_PCI,7,FALSE) -> 0 | O66: =S66+T66 -> 0 | S66: =VLOOKUP($J66,TS4L8_PCI,10,FALSE)*M66 -> 0 | T66: =VLOOKUP($J66,TS4L8_PCI,11,FALSE)*M66 -> 0 | U66: =VLOOKUP($J66,TS4L8_PCI,12,FALSE) -> 
J68: SFP100GBs
J69: =ConfigurationTS4L8!A62 -> Dell EMC PowerEdge QSFP28 SR4 100GbE 85C optic | L69: =VLOOKUP($J69,TS4L8_SFP,13,FALSE) -> TS4L8-OT100GB | M69: 0 | O69: =S69+T69 -> 0 | S69: =VLOOKUP($J69,TS4L8_SFP,10,FALSE)*M69 -> 0 | T69: =VLOOKUP($J69,TS4L8_SFP,11,FALSE)*M69 -> 0 | U69: =VLOOKUP($J69,TS4L8_SFP,12,FALSE) -> L8N28
J71: Garanzia
J72: Manutenzione in garanzia (36 mesi) | L72: =VLOOKUP($J72,TS4L8_GARANZIA,13,FALSE) ->  | M72: =VLOOKUP($J72,TS4L8_GARANZIA,7,FALSE) ->  | O72: =S72 -> 0 | S72: =VLOOKUP($J72,TS4L8_GARANZIA,10,FALSE) -> 0 | T72: =VLOOKUP($J72,TS4L8_GARANZIA,11,FALSE) -> 0 | U72: =VLOOKUP($J72,TS4L8_GARANZIA,12,FALSE) -> 
J74: Hard Disk Retention | M74: =IF(AND(J75="Hard Disk Retention 60 mesi",M72=""),"Selezionare Garanzia 60 Mesi","") -> 
L75: =VLOOKUP($J75,TS4L8_HDDRET,13,FALSE) ->  | M75: =VLOOKUP($J75,TS4L8_HDDRET,7,FALSE) -> 0 | O75: =S75 -> 0 | S75: =VLOOKUP($J75,TS4L8_HDDRET,10,FALSE) -> 0 | T75: =VLOOKUP($J75,TS4L8_HDDRET,11,FALSE) -> 0 | U75: =VLOOKUP($J75,TS4L8_HDDRET,12,FALSE) -> 
L77: Configurazione | M77: =SUM(S13:S75)*M8 -> 0
L78: 0.2 | M78: =SUM(T13:T75)*M8 -> 0
L79: Totale | M79: =SUM(M77:M78) -> 0
J81: NOTE

Sheet Altre_Opzioni
E2: Opzioni | H2: Totale altre opzioni
H3: =SUM(J7:J19) -> 0
E6: OpzRack
E7: =ConfigurationTS4L8!A83 -> Armadio Rack 42U | G7: =VLOOKUP($E7,Altre_Opzioni,13,FALSE) -> TS4L8-RACK | H7: 0 | J7: =L7 -> 0 | L7: =VLOOKUP($E7,Altre_Opzioni,10,FALSE)*H7 -> 0 | M7: =VLOOKUP($E7,Altre_Opzioni,11,FALSE) -> 0 | N7: =VLOOKUP($E7,Altre_Opzioni,12,FALSE) -> L8N22
E10: OpzUps (3000VA)
E11: =ConfigurationTS4L8!A78 -> Dispositivo UPS di tipo On-line doppia conversione, strutturato per il montaggio a rack da 19” | G11: =VLOOKUP($E11,Altre_Opzioni,13,FALSE) -> TS4L8-UPS | H11: 0 | J11: =L11 -> 0 | L11: =VLOOKUP($E11,Altre_Opzioni,10,FALSE)*H11 -> 0 | M11: =VLOOKUP($E11,Altre_Opzioni,11,FALSE)*I11 -> 0 | N11: =VLOOKUP($E11,Altre_Opzioni,12,FALSE) -> L8N16
E14: OpzGUI
E15: =ConfigurationTS4L8!A79 -> Console KVM GUI da rack | G15: =VLOOKUP($E15,Altre_Opzioni,13,FALSE) -> TS4L8-GUI | H15: 0 | J15: =L15 -> 0 | L15: =VLOOKUP($E15,Altre_Opzioni,10,FALSE)*H15 -> 0 | M15: =VLOOKUP($E15,Altre_Opzioni,11,FALSE)*H15 -> 0 | N15: =VLOOKUP($E15,Altre_Opzioni,12,FALSE) -> L8N17
E18: OpzKVM
E19: =ConfigurationTS4L8!A80 -> KVM Switch IP per GUI 16P | G19: =VLOOKUP($E19,Altre_Opzioni,13,FALSE) -> TS4L8-SWKVM | H19: 0 | J19: =L19 -> 0 | L19: =VLOOKUP($E19,Altre_Opzioni,10,FALSE)*H19 -> 0 | M19: =VLOOKUP($E19,Altre_Opzioni,11,FALSE)*H19 -> 0 | N19: =VLOOKUP($E19,Altre_Opzioni,12,FALSE) -> L8N18

Sheet Riepilogo_Ordine
F2: Convenzione Tecnologie Server 4 - Lotto 8 | I2: =IF(P8>0,"Compilare i Dati Necessari (*) all'Ordine per Stampare in PDF","Dati Completi") -> Compilare i Dati Necessari (*) all'Ordine per Stampare in PDF | Y2: SI
F3: Riepilogo Ordine Consip N° (*) | R3: =IF(Lotto8_C6400_1!M8>0,1,0) -> 0 | S3: =IF(Lotto8_C6400_2!M8>0,1,0) -> 0 | T3: =IF(Lotto8_C6400_3!M8>0,1,0) -> 0 | V3: =SUM(R3:T3) -> 0 | Y3: SI
Y4: SI
F5: Ente Ordinante (*) | I5: Data Ordine (*) | P5: Ordine | Q5: Ente | R5: data | S5: Ref Cons | T5: mail | U5: tel | V5: Ref Inst | W5: mail | X5: Tel | Y5: SI
P6: =IF(F4>0,0,1) -> 1 | Q6: =IF(F6>0,0,1) -> 1 | R6: =IF(I6>0,0,1) -> 1 | S6: =IF(F8>0,0,1) -> 1 | T6: =IF(H8>0,0,1) -> 1 | U6: =IF(J8>0,0,1) -> 1 | V6: =IF(F10>0,0,1) -> 1 | W6: =IF(H10>0,0,1) -> 1 | X6: =IF(J10>0,0,1) -> 1 | Y6: SI
F7: Referente Consegna (*) | H7: Mail (*) | J7: Tel (*) | Y7: SI
P8: =SUM(P6:X6) -> 9 | Y8: SI
F9: Referente Installazione (*) | H9: Mail (*) | J9: Tel (*) | Y9: SI
Y10: SI
Y11: SI
F12: Articoli in convenzione | R12: Config 1 | S12: Config 2 | T12: Config 3 | U12: Totale | Y12: SI
F13: Codice Produttore | G13: Codice Convenzione | H13: Descrizione | I13: Qtà | J13: Costo unitario | K13: Costo Totale | P13: N° | Q13: Codice Convenzione | R13: =Lotto8_C6400_1!M8 -> 0 | S13: =Lotto8_C6400_2!M8 -> 0 | T13: =Lotto8_C6400_3!M8 -> 0 | Y13: SI
F14: =IF(I14="","",VLOOKUP(P14,Tabella_Prezzi,9,FALSE)) ->  | G14: =IF(I14="","",VLOOKUP(P14,Tabella_Prezzi,6,FALSE)) ->  | H14: =IF(I14="","",VLOOKUP(P14,Tabella_Prezzi,8,FALSE)) ->  | I14: =IF(U14>0,U14,"") ->  | J14: =IF(I14="","",VLOOKUP(P14,Tabella_Prezzi,4,FALSE)) ->  | K14: =IF(F14="","",J14*I14) ->  | P14: L8N01 | Q14: TS4L8-SRV | R14: =COUNTIF(TS4L8_1,P14)*$R$13 -> 0 | S14: =COUNTIF(TS4L8_2,P14)*$S$13 -> 0 | T14: =COUNTIF(TS4L8_3,P14)*$T$13 -> 0 | U14: =SUM(R14:T14) -> 0 | Y14: =IF(I14<>"","SI","NO") -> NO
I15: =IF(U15>0,U15,"") ->  | K15: =IF(F15="","",J15*I15) ->  | P15: L8N02 | Q15: TS4L8-CPU | R15: =COUNTIF(TS4L8_1,P15)*V19*$R$13 -> 0 | S15: =COUNTIF(TS4L8_2,P15)*W19*$S$13 -> 0 | T15: =COUNTIF(TS4L8_3,P15)*X19*$T$13 -> 0 | U15: 0 | Y15: =IF(I15<>"","SI","NO") -> NO
P16: L8N03 | Q16: TS4L8-RAM32 | R16: =COUNTIF(TS4L8_1,P16)*Lotto8_C6400_1!M26*V19*$R$13 -> 0 | S16: =COUNTIF(TS4L8_2,P16)*Lotto8_C6400_2!M27*W19*S13 -> 0 | T16: =COUNTIF(TS4L8_3,P16)*Lotto8_C6400_3!M27*X19*T13 -> 0 | U16: 0 | Y16: =IF(I16<>"","SI","NO") -> NO
P17: L8N04 | Q17: TS4L8-RAM64 | R17: =COUNTIF(TS4L8_1,P17)*Lotto8_C6400_1!M26*V19*$R$13 -> 0 | S17: =COUNTIF(TS4L8_2,P17)*Lotto8_C6400_2!M27*W19*S14 -> 0 | T17: =COUNTIF(TS4L8_3,P17)*Lotto8_C6400_3!M27*X19*T14 -> 0 | U17: 0 | Y17: NO
P18: L8N05 | Q18: TS4L8-BaseT | R18: =COUNTIF(TS4L8_1,P18)*V19*$R$13 -> 0 | S18: =COUNTIF(TS4L8_2,P18)*W19*$S$13 -> 0 | T18: =COUNTIF(TS4L8_3,P18)*X19*$T$13 -> 0 | U18: 0 | Y18: NO
P19: L8N06 | Q19: TS4L8-LAN10 | R19: =COUNTIF(TS4L8_1,P19)*W19*$R$13 -> 0 | S19: =COUNTIF(TS4L8_2,P19)*W19*$S$13 -> 0 | T19: =COUNTIF(TS4L8_3,P19)*X19*$T$13 -> 0 | U19: 0 | V19: 4 | W19: 4 | X19: 4 | Y19: NO
P20: L8N07 | Q20: TS4L8-LAN25 | R20: =COUNTIF(TS4L8_1,P20)*V19*$R$13 -> 0 | S20: =COUNTIF(TS4L8_2,P20)*W19*$S$13 -> 0 | T20: =COUNTIF(TS4L8_3,P20)*X19*$T$13 -> 0 | U20: 0 | Y20: NO
P21: L8N08 | Q21: TS4L8-CNA10 | R21: =COUNTIF(TS4L8_1,P21)*V19*$R$13 -> 0 | S21: =COUNTIF(TS4L8_2,P21)*W19*$S$13 -> 0 | T21: =COUNTIF(TS4L8_3,P21)*X19*$T$13 -> 0 | U21: 0 | V21: Quantità 1 | W21: Quantità 2 | X21: Quantità 3 | Y21: NO
P22: L8N09 | Q22: TS4L8-HDD1TB | R22: =COUNTIF(TS4L8_1,P22)*V22*$R$13 -> 0 | S22: =COUNTIF(TS4L8_2,P22)*W22*$S$13 -> 0 | T22: =COUNTIF(TS4L8_3,P22)*X22*$T$13 -> 0 | U22: 0 | V22: =Lotto8_C6400_1!M48*V19 -> 0 | W22: =Lotto8_C6400_2!M48*W19 -> 0 | X22: =Lotto8_C6400_3!M48*X19 -> 0 | Y22: NO
P23: L8N10 | Q23: TS4L8-HDD2TB | R23: 0 | S23: 0 | T23: 0 | U23: 0 | V23: =Lotto8_C6400_1!M46*V19 -> 0 | W23: =Lotto8_C6400_2!M46*W19 -> 0 | X23: =Lotto8_C6400_3!M46*X19 -> 0 | Y23: NO
P24: L8N11 | Q24: TS4L8-SSD-RI1,6TB | R24: 0 | S24: 0 | T24: 0 | U24: 0 | V24: =Lotto8_C6400_1!M50*V19 -> 0 | W24: =Lotto8_C6400_2!M50*W19 -> 0 | X24: =Lotto8_C6400_3!M50*X19 -> 0 | Y24: NO
P25: L8N12 | Q25: TS4L8-SSD-RI3,8TB | R25: 0 | S25: 0 | T25: 0 | U25: 0 | V25: =Lotto8_C6400_1!M52*V19 -> 0 | W25: =Lotto8_C6400_2!M52*W19 -> 0 | X25: =Lotto8_C6400_3!M52*X19 -> 0 | Y25: NO
P26: L8N13 | Q26: TS4L8-SSD-MU1,6TB | R26: 0 | S26: 0 | T26: 0 | U26: 0 | V26: =Lotto8_C6400_1!M54*V19 -> 0 | W26: =Lotto8_C6400_2!M54*W19 -> 0 | X26: =Lotto8_C6400_3!M54*X19 -> 0 | Y26: NO
P27: L8N14 | Q27: TS4L8-SSD-RI800GB | R27: 0 | S27: 0 | T27: 0 | U27: 0 | V27: =Lotto8_C6400_1!M56*V19 -> 0 | W27: =Lotto8_C6400_2!M56*W19 -> 0 | X27: =Lotto8_C6400_3!M56*X19 -> 0 | Y27: NO
P28: L8N15 | Q28: TS4L8-SSD-MU800GB | R28: 0 | S28: 0 | T28: 0 | U28: 0 | V28: =Lotto8_C6400_1!M58*V19 -> 0 | W28: =Lotto8_C6400_2!M58*W19 -> 0 | X28: =Lotto8_C6400_3!M58*X19 -> 0 | Y28: NO
P29: L8N16 | Q29: TS4L8-UPS | U29: =Altre_Opzioni!H11 -> 0 | Y29: NO
P30: L8N17 | Q30: TS4L8-GUI | U30: =Altre_Opzioni!H15 -> 0 | Y30: NO
P31: L8N18 | Q31: TS4L8-SWKVM | U31: =Altre_Opzioni!H19 -> 0 | Y31: NO
P32: L8N19 | Q32: TS4L8-LINUX | R32: =COUNTIF(TS4L8_1,P32)*V19*$R$13 -> 0 | S32: =COUNTIF(TS4L8_2,P32)*W19*$S$13 -> 0 | T32: =COUNTIF(TS4L8_3,P32)*X19*$T$13 -> 0 | U32: 0 | Y32: NO
F33: =IF(I33="","",VLOOKUP(P33,Tabella_Prezzi,9,FALSE)) ->  | G33: =IF(I33="","",VLOOKUP(P33,Tabella_Prezzi,6,FALSE)) ->  | I33: =IF(U33>0,U33,"") ->  | J33: =IF(I33="","",VLOOKUP(P33,Tabella_Prezzi,4,FALSE)) ->  | K33: =IF(F33="","",J33*I33) ->  | P33: L8N20 | Q33: TS4L8-HDRTNTN60 | R33: =COUNTIF(TS4L8_1,P33)*$R$13 -> 0 | S33: =COUNTIF(TS4L8_2,P33)*$S$13 -> 0 | T33: =COUNTIF(TS4L8_3,P33)*$T$13 -> 0 | U33: =SUM(R33:T33) -> 0 | Y33: NO
P34: L8N20e | Q34: TS4L8-HDRTNTN60 | R34: =COUNTIF(TS4L8_1,P34)*$R$13 -> 0 | S34: =COUNTIF(TS4L8_2,P34)*$S$13 -> 0 | T34: =COUNTIF(TS4L8_3,P34)*$T$13 -> 0 | U34: 0 | Y34: NO
P35: L8N21 | Q35: TS4L8-OpzEst24 | R35: =COUNTIF(TS4L8_1,P35)*$R$13 -> 0 | S35: =COUNTIF(TS4L8_2,P35)*$S$13 -> 0 | T35: =COUNTIF(TS4L8_3,P35)*$T$13 -> 0 | U35: 0 | Y35: NO
P36: L8N22 | Q36: TS4L8-RACK | U36: =Altre_Opzioni!H7 -> 0 | Y36: NO
Y37: SI
Y38: SI
F39: Opzioni 20 % | R39: Config 1 | S39: Config 2 | T39: Config 3 | U39: Totale | Y39: =IF(K51>0,"SI","NO") -> NO
F40: Codice Produttore | G40: Codice Convenzione | H40: Descrizione | I40: Qtà | J40: Costo unitario | K40: Costo Totale | P40: N° | Q40: Codice Convenzione | R40: =Lotto8_C6400_1!M8 -> 0 | S40: 0 | T40: 0 | U40: =SUM(R40:T40) -> 0 | V40: Quantità 1 | W40: Quantità 2 | X40: Quantità 3 | Y40: =IF(K51>0,"SI","NO") -> NO
F41: =IF(I41="","",VLOOKUP(P41,Tabella_Prezzi,9,FALSE)) ->  | G41: =IF(I41="","",VLOOKUP(P41,Tabella_Prezzi,6,FALSE)) ->  | H41: =IF(I36="","",VLOOKUP(P36,Tabella_Prezzi,8,FALSE)) ->  | I41: =IF(U41>0,U41,"") ->  | J41: =IF(I41="","",VLOOKUP(P41,Tabella_Prezzi,4,FALSE)) ->  | K41: =IF(F41="","",J41*I41) ->  | P41: L8N24 | Q41: TS4L8-SSD-3,84TB | R41: =COUNTIF(TS4L8_1,P41)*V41*$R$13 -> 0 | S41: =COUNTIF(TS4L8_2,Q41)*W41*$R$13 -> 0 | T41: =COUNTIF(TS4L8_3,R41)*X41*$R$13 -> 0 | U41: =SUM(R41:T41) -> 0 | V41: =Lotto8_C6400_1!M42*V19 -> 0 | Y41: =IF($I41<>"","SI","NO") -> NO
H42: =IF(I37="","",VLOOKUP(P37,Tabella_Prezzi,8,FALSE)) ->  | P42: L8N25 | Q42: TS4L8-SSD-1,92TB | R42: =COUNTIF(TS4L8_1,P42)*V42*$R$13 -> 0 | S42: =COUNTIF(TS4L8_2,Q42)*W42*$R$13 -> 0 | T42: =COUNTIF(TS4L8_3,R42)*X42*$R$13 -> 0 | U42: 0 | V42: =Lotto8_C6400_1!M44*V19 -> 0 | Y42: =IF($I42<>"","SI","NO") -> NO
H43: =IF(I38="","",VLOOKUP(P38,Tabella_Prezzi,8,FALSE)) ->  | P43: L8N26 | Q43: TS4L8-CX6 | R43: =COUNTIF(TS4L8_1,P43)*V43*$R$13 -> 0 | S43: =COUNTIF(TS4L8_2,Q43)*W43*$R$13 -> 0 | T43: =COUNTIF(TS4L8_3,R43)*X43*$R$13 -> 0 | U43: 0 | V43: =Lotto8_C6400_1!M66 -> 0 | Y43: =IF($I43<>"","SI","NO") -> NO
H44: =IF(I39="","",VLOOKUP(P39,Tabella_Prezzi,8,FALSE)) ->  | P44: L8N27 | Q44: TS4L8-CX6-100 | R44: =COUNTIF(TS4L8_1,P44)*V44*$R$13 -> 0 | S44: =COUNTIF(TS4L8_2,Q44)*W44*$R$13 -> 0 | T44: =COUNTIF(TS4L8_3,R44)*X44*$R$13 -> 0 | U44: 0 | V44: =Lotto8_C6400_1!M66 -> 0 | Y44: =IF($I44<>"","SI","NO") -> NO
F45: =IF(I45="","",VLOOKUP(P45,Tabella_Prezzi,9,FALSE)) ->  | G45: =IF(I45="","",VLOOKUP(P45,Tabella_Prezzi,6,FALSE)) ->  | H45: =IF(I45="","",VLOOKUP(P45,Tabella_Prezzi,8,FALSE)) ->  | I45: =IF(U45>0,U45,"") ->  | J45: =IF(I45="","",VLOOKUP(P45,Tabella_Prezzi,4,FALSE)) ->  | K45: =IF(F45="","",J45*I45) ->  | P45: L8N28 | Q45: TS4L8-OT100GB | R45: =COUNTIF(TS4L8_1,P45)*V45*$R$13 -> 0 | S45: =COUNTIF(TS4L8_2,Q45)*W45*$R$13 -> 0 | T45: =COUNTIF(TS4L8_3,R45)*X45*$R$13 -> 0 | U45: =SUM(R45:T45) -> 0 | V45: =Lotto8_C6400_1!M69 -> 0 | Y45: =IF($I45<>"","SI","NO") -> NO
Y46: SI
Y49: SI
I50: Totale Convenzione | K50: =SUM(K14:K36) -> 0 | Y50: SI
F51: Quota Massima 20% | G51: =K53*0.2 -> 0 | I51: Totale 20% | K51: =SUM(K41:K45) -> 0 | Y51: SI
F52: Quota Residua 20% | G52: =G51-K51 -> 0 | I52: Totale Iva Esclusa | K52: =K51+K50 -> 0 | Y52: SI
I53: Totale Ordine | K53: =K52*1.22 -> 0 | Y53: SI
Y54: SI
Y55: SI

Sheet ConfigurationTS4L8 (hidden)
A1: 1 | B1: 2 | C1: 3 | D1: 4 | E1: 5 | F1: 6 | G1: 7 | H1: 8 | I1: 9 | J1: 10 | K1: 11 | L1: 12 | M1: 13
A2: POWEREDGE C6400-R Enclosure | D2: =VLOOKUP($L$2,Tabella_prezzi!$A$1:$J$186,8,FALSE) -> DELL PowerEdge C6400 con 4 x DELL PowerEdge C6525 | G2: 1 | H2: =VLOOKUP(L2,Tabella_prezzi!$A$1:$J$186,3,FALSE) -> Server rackable high-density | I2: =VLOOKUP(L2,Tabella_prezzi!$A$1:$J$186,9,FALSE) -> L8N01-ServerC6525 | J2: =VLOOKUP(L2,Tabella_prezzi!$A$1:$J$186,4,FALSE) -> 10030.79 | L2: L8N01 | M2: =VLOOKUP(L2,Tabella_prezzi!$A$1:$J$186,6,FALSE) -> TS4L8-SRV | N2: ="" -> 
A4: TS4L8_CPU
A5: No Additional Processor | G5: 0 | I5: ="" ->  | L5: ="" ->  | M5: ="" -> 
A6: =D6 -> AMD7413 2.65GHz,24C/48T,128M,180W,3200 | D6: =VLOOKUP($L$6,Tabella_prezzi!$A$1:$J$186,8,FALSE) -> AMD7413 2.65GHz,24C/48T,128M,180W,3200 | G6: 4 | H6: =VLOOKUP($L$6,Tabella_prezzi!$A$1:$J$186,3,FALSE) -> Kit n. 1 Processore aggiuntivo | I6: =VLOOKUP($L$6,Tabella_prezzi!$A$1:$J$186,9,FALSE) -> L8N02-OpzCPU | J6: =VLOOKUP($L$6,Tabella_Prezzi,4,FALSE)*4 -> 2288.68 | L6: L8N02 | M6: =VLOOKUP($L$6,Tabella_prezzi!$A$1:$J$186,6,FALSE) -> TS4L8-CPU
A8: TS4L8_RAM (1CPU)
A9: 128GB Totali per Nodo | B9: Memory Capacity | D9: =Tabella_prezzi!$H$4 -> 32GB - 2Rx4 DDR4 RDIMM 3200MHz | E9: * | F9: AA799110 | G9: 0 | H9: =VLOOKUP(L9,Tabella_prezzi!$A$1:$J$186,3,FALSE) -> OpzRAM32GB | I9: =VLOOKUP(L9,Tabella_prezzi!$A$1:$J$186,9,FALSE) -> L8N03-OpzRAM32GB | J9: =VLOOKUP(L9,Tabella_prezzi!$A$1:$J$186,4,FALSE)*G9*4 -> 0 | L9: L8N03 | M9: =VLOOKUP(L9,Tabella_prezzi!$A$1:$J$186,6,FALSE) -> TS4L8-RAM32
A10: 192GB Totali per Nodo | B10: Memory Capacity | D10: =Tabella_prezzi!$H$4 -> 32GB - 2Rx4 DDR4 RDIMM 3200MHz | E10: * | F10: AA799110 | G10: 2 | H10: =VLOOKUP(L10,Tabella_prezzi!$A$1:$J$186,3,FALSE) -> OpzRAM32GB | I10: =VLOOKUP(L10,Tabella_prezzi!$A$1:$J$186,9,FALSE) -> L8N03-OpzRAM32GB | J10: =VLOOKUP(L10,Tabella_prezzi!$A$1:$J$186,4,FALSE)*G10*4 -> 2109.12 | L10: L8N03 | M10: =VLOOKUP(L10,Tabella_prezzi!$A$1:$J$186,6,FALSE) -> TS4L8-RAM32
A11: 256GB Totali per Nodo | B11: Memory Capacity | D11: =Tabella_prezzi!$H$4 -> 32GB - 2Rx4 DDR4 RDIMM 3200MHz | F11: AA799110 | G11: 4 | H11: =VLOOKUP(L11,Tabella_prezzi!$A$1:$J$186,3,FALSE) -> OpzRAM32GB | I11: =VLOOKUP(L11,Tabella_prezzi!$A$1:$J$186,9,FALSE) -> L8N03-OpzRAM32GB | J11: =VLOOKUP(L11,Tabella_prezzi!$A$1:$J$186,4,FALSE)*G11*4 -> 4218.24 | L11: L8N03 | M11: =VLOOKUP(L11,Tabella_prezzi!$A$1:$J$186,6,FALSE) -> TS4L8-RAM32
A12: 320GB Totali per Nodo | B12: Memory Capacity | D12: =Tabella_prezzi!$H$4 -> 32GB - 2Rx4 DDR4 RDIMM 3200MHz | F12: AA799110 | G12: 6 | H12: =VLOOKUP(L12,Tabella_prezzi!$A$1:$J$186,3,FALSE) -> OpzRAM32GB | I12: =VLOOKUP(L12,Tabella_prezzi!$A$1:$J$186,9,FALSE) -> L8N03-OpzRAM32GB | J12: =VLOOKUP(L12,Tabella_prezzi!$A$1:$J$186,4,FALSE)*G12*4 -> 6327.36 | L12: L8N03 | M12: =VLOOKUP(L12,Tabella_prezzi!$A$1:$J$186,6,FALSE) -> TS4L8-RAM32
A13: 384GB Totali per Nodo | B13: Memory Capacity | D13: =Tabella_prezzi!$H$4 -> 32GB - 2Rx4 DDR4 RDIMM 3200MHz | F13: AA799110 | G13: 8 | H13: =VLOOKUP(L13,Tabella_prezzi!$A$1:$J$186,3,FALSE) -> OpzRAM32GB | I13: =VLOOKUP(L13,Tabella_prezzi!$A$1:$J$186,9,FALSE) -> L8N03-OpzRAM32GB | J13: =VLOOKUP(L13,Tabella_prezzi!$A$1:$J$186,4,FALSE)*G13*4 -> 8436.48 | L13: L8N03 | M13: =VLOOKUP(L13,Tabella_prezzi!$A$1:$J$186,6,FALSE) -> TS4L8-RAM32
A14: 448GB Totali per Nodo | B14: Memory Capacity | D14: =Tabella_prezzi!$H$4 -> 32GB - 2Rx4 DDR4 RDIMM 3200MHz | F14: AA799110 | G14: 10 | H14: =VLOOKUP(L14,Tabella_prezzi!$A$1:$J$186,3,FALSE) -> OpzRAM32GB | I14: =VLOOKUP(L14,Tabella_prezzi!$A$1:$J$186,9,FALSE) -> L8N03-OpzRAM32GB | J14: =VLOOKUP(L14,Tabella_prezzi!$A$1:$J$186,4,FALSE)*G14*4 -> 10545.6 | L14: L8N03 | M14: =VLOOKUP(L14,Tabella_prezzi!$A$1:$J$186,6,FALSE) -> TS4L8-RAM32
A15: 512GB Totali per Nodo | B15: Memory Capacity | D15: =Tabella_prezzi!$H$4 -> 32GB - 2Rx4 DDR4 RDIMM 3200MHz | F15: AA799110 | G15: 12 | H15: =VLOOKUP(L15,Tabella_prezzi!$A$1:$J$186,3,FALSE) -> OpzRAM32GB | I15: =VLOOKUP(L15,Tabella_prezzi!$A$1:$J$186,9,FALSE) -> L8N03-OpzRAM32GB | J15: =VLOOKUP(L15,Tabella_prezzi!$A$1:$J$186,4,FALSE)*G15*4 -> 12654.72 | L15: L8N03 | M15: =VLOOKUP(L15,Tabella_prezzi!$A$1:$J$186,6,FALSE) -> TS4L8-RAM32
A17: 128GB Totali (1 x 64GB DIMM + 2 x 32GB DIMM per Nodo) ⚠ | B17: Memory Capacity | D17: 32GB RDIMM, 3200MT/s, Dual Rank | E17: * | F17: AA799087 | G17: 2 | H17: =VLOOKUP(L17,Tabella_prezzi!$A$1:$J$186,3,FALSE) -> OpzRAM32GB | I17: =VLOOKUP(L17,Tabella_prezzi!$A$1:$J$186,9,FALSE) -> L8N03-OpzRAM32GB | J17: =VLOOKUP(L17,Tabella_prezzi!$A$1:$J$186,4,FALSE)*G17*4 -> 2109.12 | L17: L8N03 | M17: =VLOOKUP(L17,Tabella_prezzi!$A$1:$J$186,6,FALSE) -> TS4L8-RAM32
A18: 256GB Totali (1 x 64GB DIMM + 6 x 32GB DIMM per Nodo) ⚠ | B18: Memory Capacity | D18: 32GB RDIMM, 3200MT/s, Dual Rank | E18: * | F18: AA799087 | G18: 6 | H18: =VLOOKUP(L18,Tabella_prezzi!$A$1:$J$186,3,FALSE) -> OpzRAM32GB | I18: =VLOOKUP(L18,Tabella_prezzi!$A$1:$J$186,9,FALSE) -> L8N03-OpzRAM32GB | J18: =VLOOKUP(L18,Tabella_prezzi!$A$1:$J$186,4,FALSE)*G18*4 -> 6327.36 | L18: L8N03 | M18: =VLOOKUP(L18,Tabella_prezzi!$A$1:$J$186,6,FALSE) -> TS4L8-RAM32
A19: 512GB Totali (1 x 64GB DIMM + 14 x 32GB DIMM per Nodo) ⚠ | B19: Memory Capacity | D19: 32GB RDIMM, 3200MT/s, Dual Rank | E19: * | F19: AA799087 | G19: 6 | H19: =VLOOKUP(L19,Tabella_prezzi!$A$1:$J$186,3,FALSE) -> OpzRAM32GB | I19: =VLOOKUP(L19,Tabella_prezzi!$A$1:$J$186,9,FALSE) -> L8N03-OpzRAM32GB | J19: =VLOOKUP(L19,Tabella_prezzi!$A$1:$J$186,4,FALSE)*G19*4 -> 6327.36 | L19: L8N03 | M19: =VLOOKUP(L19,Tabella_prezzi!$A$1:$J$186,6,FALSE) -> TS4L8-RAM32
A22: 128GB Totali (1 x 64GB DIMM + 2 x 32GB DIMM per Nodo) ⚠ | B22: Memory Capacity | D22: 32GB RDIMM, 3200MT/s, Dual Rank | E22: * | F22: AA799087 | G22: 2 | H22: =VLOOKUP(L22,Tabella_prezzi!$A$1:$J$186,3,FALSE) -> OpzRAM32GB | I22: =VLOOKUP(L22,Tabella_prezzi!$A$1:$J$186,9,FALSE) -> L8N03-OpzRAM32GB | J22: =VLOOKUP(L22,Tabella_prezzi!$A$1:$J$186,4,FALSE)*G22*4 -> 2109.12 | L22: L8N03 | M22: =VLOOKUP(L22,Tabella_prezzi!$A$1:$J$186,6,FALSE) -> TS4L8-RAM32
A23: 256GB Totali (1 x 64GB DIMM + 6 x 32GB DIMM per Nodo) ⚠ | B23: Memory Capacity | D23: 32GB RDIMM, 3200MT/s, Dual Rank | E23: * | F23: AA799087 | G23: 6 | H23: =VLOOKUP(L23,Tabella_prezzi!$A$1:$J$186,3,FALSE) -> OpzRAM32GB | I23: =VLOOKUP(L23,Tabella_prezzi!$A$1:$J$186,9,FALSE) -> L8N03-OpzRAM32GB | J23: =VLOOKUP(L23,Tabella_prezzi!$A$1:$J$186,4,FALSE)*G23*4 -> 6327.36 | L23: L8N03 | M23: =VLOOKUP(L23,Tabella_prezzi!$A$1:$J$186,6,FALSE) -> TS4L8-RAM32
A24: TS4L8_OS
A25: No Operating System | B25: Operating System | G25: 0 | I25: ="" ->  | L25: ="" ->  | M25: ="" ->  | N25: 0 | P25: ="" ->  | Q25: ="" ->  | S25: 0 | T25: 0 | U25: ="" -> 
A26: =D26 -> Ubuntu 22.04 LTS 64 Bit | B26: Operating System | D26: =VLOOKUP(L26,Tabella_prezzi!$A$1:$J$186,8,FALSE) -> Ubuntu 22.04 LTS 64 Bit | G26: 4 | H26: =VLOOKUP(L26,Tabella_prezzi!$A$1:$J$186,3,FALSE) -> OpzOpenSource | I26: =VLOOKUP(L26,Tabella_prezzi!$A$1:$J$186,9,FALSE) -> L8N19-OpzOpenSource | J26: =VLOOKUP(L26,Tabella_prezzi!$A$1:$J$186,4,FALSE) -> 31.82 | L26: L8N19 | M26: =VLOOKUP(L26,Tabella_prezzi!$A$1:$J$186,6,FALSE) -> TS4L8-OpenSource | N26: 8 | O26: =VLOOKUP(T26,Tabella_prezzi!$A$1:$J$186,3,FALSE) -> OpzRack | P26: =VLOOKUP(T26,Tabella_prezzi!$A$1:$J$186,9,FALSE) -> L8N22-OpzRack | Q26: =VLOOKUP(T26,Tabella_prezzi!$A$1:$J$186,4,FALSE)*N26*4 -> 18548.16 | S26: 0 | T26: L8N22 | U26: =VLOOKUP(T26,Tabella_prezzi!$A$1:$J$186,6,FALSE) -> TS4L8-RACK
A27: [TS4L8-LINUX] Ubuntu 18.04 LTS 64 Bit | B27: Operating System | D27: =VLOOKUP(L27,Tabella_prezzi!$A$1:$J$186,8,FALSE) ->  | G27: 1 | H27: =VLOOKUP(L27,Tabella_prezzi!$A$1:$J$186,3,FALSE) ->  | I27: =VLOOKUP(L27,Tabella_prezzi!$A$1:$J$186,9,FALSE) ->  | J27: =VLOOKUP(L27,Tabella_prezzi!$A$1:$J$186,4,FALSE)*4 ->  | L27: L8N23 | M27: =VLOOKUP(L27,Tabella_prezzi!$A$1:$J$186,6,FALSE) ->  | N27: 0 | P27: ="" ->  | Q27: ="" ->  | S27: 0 | T27: 0 | U27: ="" -> 
A29: TS4L8_HDD
A30: ="" ->  | G30: 0 | I30: ="" ->  | L30: ="" ->  | M30: ="" -> 
A31: =D31 -> 2.4TB 10k 512e SAS ISE 12Gbps 2.5in Hot Plug Hard Drive | B31: Hard Drives | D31: =VLOOKUP(L31,Tabella_prezzi!$A$1:$J$186,8,FALSE) -> 2.4TB 10k 512e SAS ISE 12Gbps 2.5in Hot Plug Hard Drive | G31: 1 | H31: =VLOOKUP(L31,Tabella_prezzi!$A$1:$J$186,3,FALSE) -> OpzHDD2TB | I31: =VLOOKUP(L31,Tabella_prezzi!$A$1:$J$186,9,FALSE) -> L8N10-OpzHDD2TB | J31: =VLOOKUP(L31,Tabella_prezzi!$A$1:$J$186,4,FALSE)*4 -> 666.6 | L31: L8N10 | M31: =VLOOKUP(L31,Tabella_prezzi!$A$1:$J$186,6,FALSE) -> TS4L8-HDD2TB
A33: =D33 -> 1.2TB 10K RPM SAS ISE 12Gbps 512n 2.5in Hot-plug Hard Drive | B33: Hard Drives | D33: =VLOOKUP(L33,Tabella_prezzi!$A$1:$J$186,8,FALSE) -> 1.2TB 10K RPM SAS ISE 12Gbps 512n 2.5in Hot-plug Hard Drive | G33: 1 | H33: =VLOOKUP(L33,Tabella_prezzi!$A$1:$J$186,3,FALSE) -> OpzHDD1TB | I33: =VLOOKUP(L33,Tabella_prezzi!$A$1:$J$186,9,FALSE) -> L8N09-OpzHDD1TB | J33: =VLOOKUP(L33,Tabella_prezzi!$A$1:$J$186,4,FALSE)*4 -> 333.32 | L33: L8N09 | M33: =VLOOKUP(L33,Tabella_prezzi!$A$1:$J$186,6,FALSE) -> TS4L8-HDD1TB
A35: =D35 -> 1.92TB SSD SAS ISE RI 12Gbps 512e 2.5in Hot-Plug 1 DWP | B35: Hard Drives | D35: =VLOOKUP(L35,Tabella_prezzi!$A$1:$J$186,8,FALSE) -> 1.92TB SSD SAS ISE RI 12Gbps 512e 2.5in Hot-Plug 1 DWP | G35: 1 | H35: =VLOOKUP(L35,Tabella_prezzi!$A$1:$J$186,3,FALSE) -> OpzSSD-RI1,6TB | I35: =VLOOKUP(L35,Tabella_prezzi!$A$1:$J$186,9,FALSE) -> L8N11-OpzSSD-RI1,6TB | J35: =VLOOKUP(L35,Tabella_prezzi!$A$1:$J$186,4,FALSE)*4 -> 1866.48 | L35: L8N11 | M35: =VLOOKUP(L35,Tabella_prezzi!$A$1:$J$186,6,FALSE) -> TS4L8-RI1600GB
A37: =D37 -> 3.84TB SSD SAS ISE RI 12Gbps 512e 2.5in PM6 Hot-Plug 1 DWPD | B37: Hard Drives | D37: =VLOOKUP(L37,Tabella_prezzi!$A$1:$J$186,8,FALSE) -> 3.84TB SSD SAS ISE RI 12Gbps 512e 2.5in PM6 Hot-Plug 1 DWPD | G37: 1 | H37: =VLOOKUP(L37,Tabella_prezzi!$A$1:$J$186,3,FALSE) -> OpzSSD-RI3,8TB | I37: =VLOOKUP(L37,Tabella_prezzi!$A$1:$J$186,9,FALSE) -> L8N12-OpzSSD-RI3,8TB | J37: =VLOOKUP(L37,Tabella_prezzi!$A$1:$J$186,4,FALSE)*4 -> 3777.4 | L37: L8N12 | M37: =VLOOKUP(L37,Tabella_prezzi!$A$1:$J$186,6,FALSE) -> TS4L8-RI3,8TB
A39: =D39 -> 1.6TB SSD SAS ISE MU 12Gbps 512e 2.5in Hot-Plug PM6 3 DWPD | B39: Hard Drives | D39: =VLOOKUP(L39,Tabella_prezzi!$A$1:$J$186,8,FALSE) -> 1.6TB SSD SAS ISE MU 12Gbps 512e 2.5in Hot-Plug PM6 3 DWPD | G39: 1 | H39: =VLOOKUP(L39,Tabella_prezzi!$A$1:$J$186,3,FALSE) -> OpzSSD-MU1.6TB | I39: =VLOOKUP(L39,Tabella_prezzi!$A$1:$J$186,9,FALSE) -> L8N13-OpzSSD-MU1.6TB | J39: =VLOOKUP(L39,Tabella_prezzi!$A$1:$J$186,4,FALSE)*4 -> 2545.2 | L39: L8N13 | M39: =VLOOKUP(L39,Tabella_prezzi!$A$1:$J$186,6,FALSE) -> TS4L8-MU1.6TB
A41: =D41 -> 960GB SSD SAS ISE RI 12Gbps 512e 2.5in Hot-Plug 1 DWPD | B41: Hard Drives | D41: =VLOOKUP(L41,Tabella_prezzi!$A$1:$J$186,8,FALSE) -> 960GB SSD SAS ISE RI 12Gbps 512e 2.5in Hot-Plug 1 DWPD | G41: 1 | H41: =VLOOKUP(L41,Tabella_prezzi!$A$1:$J$186,3,FALSE) -> OpzSSD-RI800GB | I41: =VLOOKUP(L41,Tabella_prezzi!$A$1:$J$186,9,FALSE) -> L8N14-OpzSSD-RI800GB | J41: =VLOOKUP(L41,Tabella_prezzi!$A$1:$J$186,4,FALSE)*4 -> 1272.6 | L41: L8N14 | M41: =VLOOKUP(L41,Tabella_prezzi!$A$1:$J$186,6,FALSE) -> TS4L8-RI800GB
A43: =D43 -> SSD 960GB SAS RI 12Gbps 2.5in Hot-plug, 1 DWPD | B43: Hard Drives | D43: =VLOOKUP(L43,Tabella_prezzi!$A$1:$J$186,8,FALSE) -> SSD 960GB SAS RI 12Gbps 2.5in Hot-plug, 1 DWPD | G43: 1 | H43: =VLOOKUP(L43,Tabella_prezzi!$A$1:$J$186,3,FALSE) -> OpzSSD-MU800GB | I43: =VLOOKUP(L43,Tabella_prezzi!$A$1:$J$186,9,FALSE) -> L8N15-OpzSSD-RI400GB | J43: =VLOOKUP(L43,Tabella_prezzi!$A$1:$J$186,4,FALSE)*4 -> 1484.72 | L43: L8N15 | M43: =VLOOKUP(L43,Tabella_prezzi!$A$1:$J$186,6,FALSE) -> TS4L8-MU800GB
A45: =D45 -> 3.84TB SSD SATA Read Intensive 6Gbps 512e 2.5in Hot-Plug | B45: Hard Drives | D45: =VLOOKUP(L45,Tabella_prezzi!$A$1:$J$186,8,FALSE) -> 3.84TB SSD SATA Read Intensive 6Gbps 512e 2.5in Hot-Plug | G45: 1 | H45: =VLOOKUP(L45,Tabella_prezzi!$A$1:$J$186,3,FALSE) -> OpzSSD-3,84TB | I45: =VLOOKUP(L45,Tabella_prezzi!$A$1:$J$186,9,FALSE) -> L8N24-OpzSSD3.84RI | J45: =VLOOKUP(L45,Tabella_prezzi!$A$1:$J$186,4,FALSE)*4 -> 4854.6 | L45: L8N24 | M45: =VLOOKUP(L45,Tabella_prezzi!$A$1:$J$186,6,FALSE) -> TS4L8-SSD3.84RI
A47: =D47 -> 1.92TB SSD SATA Read Intensive 6Gbps 512e 2.5in Hot-Plug | B47: Hard Drives | D47: =VLOOKUP(L47,Tabella_prezzi!$A$1:$J$186,8,FALSE) -> 1.92TB SSD SATA Read Intensive 6Gbps 512e 2.5in Hot-Plug | G47: 1 | H47: =VLOOKUP(L47,Tabella_prezzi!$A$1:$J$186,3,FALSE) -> OpzSSD-1,92TB | I47: =VLOOKUP(L47,Tabella_prezzi!$A$1:$J$186,9,FALSE) -> L8N25-OpzSSD1.92RI | J47: =VLOOKUP(L47,Tabella_prezzi!$A$1:$J$186,4,FALSE)*4 -> 2440.8 | L47: L8N25 | M47: =VLOOKUP(L47,Tabella_prezzi!$A$1:$J$186,6,FALSE) -> TS4L8-SSD1.92RI
A50: Aggiungere Secondo Processore
A51: TS4L8_PCI_C
A52: ="" ->  | G52: 0 | I52: ="" ->  | L52: ="" ->  | M52: ="" -> 
A53: =D53 -> Intel X710-T2L Dual Port 10GbE BASE-T Adapter, PCIe Low Profile + Optics | D53: =VLOOKUP(L53,Tabella_prezzi!$A$1:$J$186,8,FALSE) -> Intel X710-T2L Dual Port 10GbE BASE-T Adapter, PCIe Low Profile + Optics | G53: 4 | H53: =VLOOKUP(L53,Tabella_prezzi!$A$1:$J$186,3,FALSE) -> Opz10Gigabit BaseT | I53: =VLOOKUP(L53,Tabella_prezzi!$A$1:$J$186,9,FALSE) -> L8N05-Opz10Gigabit BaseT | J53: =VLOOKUP(L53,Tabella_prezzi!$A$1:$J$186,4,FALSE) -> 144.43 | L53: L8N05 | M53: =VLOOKUP(L53,Tabella_prezzi!$A$1:$J$186,6,FALSE) -> TS4L8-LAN_BaseT
A54: =D54 -> Intel Ethernet XXV710 Dual Port 10 SFP28 Adapter, PCIe Low Profile + optics | D54: =VLOOKUP(L54,Tabella_prezzi!$A$1:$J$186,8,FALSE) -> Intel Ethernet XXV710 Dual Port 10 SFP28 Adapter, PCIe Low Profile + optics | G54: 4 | H54: =VLOOKUP(L54,Tabella_prezzi!$A$1:$J$186,3,FALSE) -> OpzGigabit10Gbps | I54: =VLOOKUP(L54,Tabella_prezzi!$A$1:$J$186,9,FALSE) -> L8N06-OpzGigabit10GbpsLP | J54: =VLOOKUP(L54,Tabella_prezzi!$A$1:$J$186,4,FALSE) -> 149.99 | L54: L8N06 | M54: =VLOOKUP(L54,Tabella_prezzi!$A$1:$J$186,6,FALSE) -> TS4L8-LAN10-L
A55: =D55 -> Intel Ethernet XXV710 Dual Port 25GbE SFP28 Adapter, PCIe Low Profile + Optics | D55: =VLOOKUP(L55,Tabella_prezzi!$A$1:$J$186,8,FALSE) -> Intel Ethernet XXV710 Dual Port 25GbE SFP28 Adapter, PCIe Low Profile + Optics | G55: 4 | H55: =VLOOKUP(L55,Tabella_prezzi!$A$1:$J$186,3,FALSE) -> OpzGigabit25Gbps | I55: =VLOOKUP(L55,Tabella_prezzi!$A$1:$J$186,9,FALSE) -> L8N07-OpzGigabit25GbpsLP | J55: =VLOOKUP(L55,Tabella_prezzi!$A$1:$J$186,4,FALSE) -> 233.31 | L55: L8N07 | M55: =VLOOKUP(L55,Tabella_prezzi!$A$1:$J$186,6,FALSE) -> TS4L8-LAN25-L
A56: =D56 -> QLogic FastLinQ 41262 Dual Port 25Gb SFP28 Adapter, Low Profile + Optics | D56: =VLOOKUP(L56,Tabella_prezzi!$A$1:$J$186,8,FALSE) -> QLogic FastLinQ 41262 Dual Port 25Gb SFP28 Adapter, Low Profile + Optics | G56: 4 | H56: =VLOOKUP(L56,Tabella_prezzi!$A$1:$J$186,3,FALSE) -> OpzGigabit10Gbps CNA | I56: =VLOOKUP(L56,Tabella_prezzi!$A$1:$J$186,9,FALSE) -> L8N08-OpzCNA10GbpsLP | J56: =VLOOKUP(L56,Tabella_prezzi!$A$1:$J$186,4,FALSE) -> 149.99 | L56: L8N08 | M56: =VLOOKUP(L56,Tabella_prezzi!$A$1:$J$186,6,FALSE) -> TS4L8-CNA10-L
A58: Opzioni 20% | M58: Selezionare Scheda PCI
A59: =D59 -> Mellanox ConnectX-6 DX Dual Port 100GbE QSFP56 Network Adapter, Low Profile | D59: =VLOOKUP(L59,Tabella_prezzi!$A$1:$J$186,8,FALSE) -> Mellanox ConnectX-6 DX Dual Port 100GbE QSFP56 Network Adapter, Low Profile | G59: 4 | H59: =VLOOKUP(L59,Tabella_prezzi!$A$1:$J$186,3,FALSE) -> OpzCX6-100 | I59: =VLOOKUP(L59,Tabella_prezzi!$A$1:$J$186,9,FALSE) -> L8N27-Opz100GBs-M | K59: =VLOOKUP(L59,Tabella_prezzi!$A$1:$J$186,4,FALSE) -> 739.8 | L59: L8N27 | M59: =VLOOKUP(L59,Tabella_prezzi!$A$1:$J$186,6,FALSE) -> TS4L8-100GBs-M
A60: =D60 -> Mellanox ConnectX-6 Single Port HDR VPI Infiniband Adapter, PCIe Low Profile | D60: =VLOOKUP(L60,Tabella_prezzi!$A$1:$J$186,8,FALSE) -> Mellanox ConnectX-6 Single Port HDR VPI Infiniband Adapter, PCIe Low Profile | G60: 4 | H60: =VLOOKUP(L60,Tabella_prezzi!$A$1:$J$186,3,FALSE) -> OpzCX6 | I60: =VLOOKUP(L60,Tabella_prezzi!$A$1:$J$186,9,FALSE) -> L8N26-Opz100GBs-INF | K60: =VLOOKUP(L60,Tabella_prezzi!$A$1:$J$186,4,FALSE) -> 1305.45 | L60: L8N26 | M60: =VLOOKUP(L60,Tabella_prezzi!$A$1:$J$186,6,FALSE) -> TS4L8-100GBs-INF
A61: TS4L8_SFP
A62: =D62 -> Dell EMC PowerEdge QSFP28 SR4 100GbE 85C optic | D62: =VLOOKUP(L62,Tabella_prezzi!$A$1:$J$186,8,FALSE) -> Dell EMC PowerEdge QSFP28 SR4 100GbE 85C optic | G62: 4 | H62: =VLOOKUP(L62,Tabella_prezzi!$A$1:$J$186,3,FALSE) -> OpzOT100GB | I62: =VLOOKUP(L62,Tabella_prezzi!$A$1:$J$186,9,FALSE) -> L8N28-OpzOT100GB | K62: =VLOOKUP(L62,Tabella_prezzi!$A$1:$J$186,4,FALSE) -> 484.65 | L62: L8N28 | M62: =VLOOKUP(L62,Tabella_prezzi!$A$1:$J$186,6,FALSE) -> TS4L8-OT100GB
A63: TS4L8_WARRANTY
A64: Manutenzione in garanzia (36 mesi) | B64: Dell Services: Extended Service | D64: RESTRICTED:ProSupport One Data Center and Next Business Day Onsite Service Volume Low, 39 Month(s) | G64: ="" ->  | I64: ="" ->  | L64: ="" ->  | M64: ="" -> 
A65: =D65 -> Estensione della manutenzione in garanzia per ulteriori 24 mesi | B65: Dell Services: Extended Service | D65: =VLOOKUP(L65,Tabella_prezzi!$A$1:$J$186,8,FALSE) -> Estensione della manutenzione in garanzia per ulteriori 24 mesi | G65: 1 | H65: =VLOOKUP(L65,Tabella_prezzi!$A$1:$J$186,3,FALSE) -> OpzEstensione24 | I65: =VLOOKUP(L65,Tabella_prezzi!$A$1:$J$186,9,FALSE) -> L8N21-OpzEstensione24 | J65: =VLOOKUP(L65,Tabella_prezzi!$A$1:$J$186,4,FALSE) -> 719.32 | L65: L8N21 | M65: =VLOOKUP(L65,Tabella_prezzi!$A$1:$J$186,6,FALSE) -> TS4L8-Estensione24
A67: TS4L8_KYHDD
A68: ="" ->  | B68: Keep Your Hard Drive | G68: 0 | I68: ="" ->  | L68: ="" ->  | M68: ="" -> 
A69: Hard Disk Retention 36 mesi | B69: Keep Your Hard Drive | D69: =VLOOKUP(L69,Tabella_prezzi!$A$1:$J$186,8,FALSE) -> Hard Disk Retention 36 mesi | G69: 1 | H69: =VLOOKUP(L69,Tabella_prezzi!$A$1:$J$186,3,FALSE) -> OpzHDDRetention | I69: =VLOOKUP(L69,Tabella_prezzi!$A$1:$J$186,9,FALSE) -> L8N20-OpzHDDRetention | J69: =VLOOKUP(L69,Tabella_prezzi!$A$1:$J$186,4,FALSE) -> 59.6 | L69: L8N20 | M69: =VLOOKUP(L69,Tabella_prezzi!$A$1:$J$186,6,FALSE) -> TS4L8-HDRTN36
A70: Hard Disk Retention 60 mesi | B70: Keep Your Hard Drive | D70: =VLOOKUP(L70,Tabella_prezzi!$A$1:$J$186,8,FALSE) -> Hard Disk Retention 60 mesi | G70: 1 | H70: =VLOOKUP(L70,Tabella_prezzi!$A$1:$J$186,3,FALSE) -> OpzHDDRetention | I70: =VLOOKUP(L70,Tabella_prezzi!$A$1:$J$186,9,FALSE) -> L8N20e-OpzHDDRetention | J70: =VLOOKUP(L70,Tabella_prezzi!$A$1:$J$186,4,FALSE) -> 98.93 | L70: L8N20e | M70: =VLOOKUP(L70,Tabella_prezzi!$A$1:$J$186,6,FALSE) -> TS4L8-HDRTN60
A73: TS4L8_Controller
A74: No Controller | B74: ="" ->  | C74: ="" ->  | D74: ="" ->  | E74: ="" ->  | F74: ="" ->  | G74: 0 | H74: ="" ->  | I74: ="" ->  | J74: ="" ->  | K74: ="" ->  | L74: ="" ->  | M74: ="" -> 
A75: PERC H350 Controller Card | G75: 4 | I75: ="" ->  | L75: ="" ->  | M75: ="" -> 
A78: =D78 -> Dispositivo UPS di tipo On-line doppia conversione, strutturato per il montaggio a rack da 19” | D78: =VLOOKUP(L78,Tabella_prezzi!$A$1:$J$186,8,FALSE) -> Dispositivo UPS di tipo On-line doppia conversione, strutturato per il montaggio a rack da 19” | G78: 1 | H78: =VLOOKUP(L78,Tabella_prezzi!$A$1:$J$186,3,FALSE) -> OpzUps (3000VA) | I78: =VLOOKUP(L78,Tabella_prezzi!$A$1:$J$186,9,FALSE) -> L8N16-OpzUps | J78: =VLOOKUP(L78,Tabella_prezzi!$A$1:$J$186,4,FALSE) -> 386.02 | L78: L8N16 | M78: =VLOOKUP(L78,Tabella_prezzi!$A$1:$J$186,6,FALSE) -> TS4L8-UPS
A79: =D79 -> Console KVM GUI da rack | D79: =VLOOKUP(L79,Tabella_prezzi!$A$1:$J$186,8,FALSE) -> Console KVM GUI da rack | G79: 1 | H79: =VLOOKUP(L79,Tabella_prezzi!$A$1:$J$186,3,FALSE) -> OpzGUI | I79: =VLOOKUP(L79,Tabella_prezzi!$A$1:$J$186,9,FALSE) -> L8N17-OpzGUI | J79: =VLOOKUP(L79,Tabella_prezzi!$A$1:$J$186,4,FALSE) -> 491.62 | L79: L8N17 | M79: =VLOOKUP(L79,Tabella_prezzi!$A$1:$J$186,6,FALSE) -> TS4L8-GUI
A80: =D80 -> KVM Switch IP per GUI 16P | D80: =VLOOKUP(L80,Tabella_prezzi!$A$1:$J$186,8,FALSE) -> KVM Switch IP per GUI 16P | G80: 1 | H80: =VLOOKUP(L80,Tabella_prezzi!$A$1:$J$186,3,FALSE) -> OpzKVM | I80: =VLOOKUP(L80,Tabella_prezzi!$A$1:$J$186,9,FALSE) -> L8N18-OpzKVM | J80: =VLOOKUP(L80,Tabella_prezzi!$A$1:$J$186,4,FALSE) -> 552.47 | L80: L8N18 | M80: =VLOOKUP(L80,Tabella_prezzi!$A$1:$J$186,6,FALSE) -> TS4L8-SWKVM
A81: 1-pack of Windows Server 2019/2016 Device CALs (STD or DC) | D81: =VLOOKUP(L81,Tabella_prezzi!$A$1:$J$186,8,FALSE) -> Hard Disk Retention 36 mesi | G81: 1 | H81: =VLOOKUP(L81,Tabella_prezzi!$A$1:$J$186,3,FALSE) -> OpzHDDRetention | I81: =VLOOKUP(L81,Tabella_prezzi!$A$1:$J$186,9,FALSE) -> L8N20-OpzHDDRetention | J81: =VLOOKUP(L81,Tabella_prezzi!$A$1:$J$186,4,FALSE) -> 59.6 | L81: L8N20 | M81: =VLOOKUP(L81,Tabella_prezzi!$A$1:$J$186,6,FALSE) -> TS4L8-HDRTN36
A82: 1-pack of Windows Server 2019/2016 User CALs (STD or DC) | D82: =VLOOKUP(L82,Tabella_prezzi!$A$1:$J$186,8,FALSE) -> Estensione della manutenzione in garanzia per ulteriori 24 mesi | G82: 1 | H82: =VLOOKUP(L82,Tabella_prezzi!$A$1:$J$186,3,FALSE) -> OpzEstensione24 | I82: =VLOOKUP(L82,Tabella_prezzi!$A$1:$J$186,9,FALSE) -> L8N21-OpzEstensione24 | J82: =VLOOKUP(L82,Tabella_prezzi!$A$1:$J$186,4,FALSE) -> 719.32 | L82: L8N21 | M82: =VLOOKUP(L82,Tabella_prezzi!$A$1:$J$186,6,FALSE) -> TS4L8-Estensione24
A83: =D83 -> Armadio Rack 42U | D83: =VLOOKUP(L83,Tabella_prezzi!$A$1:$J$186,8,FALSE) -> Armadio Rack 42U | G83: 1 | H83: =VLOOKUP(L83,Tabella_prezzi!$A$1:$J$186,3,FALSE) -> OpzRack | I83: =VLOOKUP(L83,Tabella_prezzi!$A$1:$J$186,9,FALSE) -> L8N22-OpzRack | J83: =VLOOKUP(L83,Tabella_prezzi!$A$1:$J$186,4,FALSE) -> 579.63 | L83: L8N22 | M83: =VLOOKUP(L83,Tabella_prezzi!$A$1:$J$186,6,FALSE) -> TS4L8-RACK
A86: Mini DisplayPort to VGA
B87: 0 | C87: 0
B88: 1 | C88: 1
B89: 4 | C89: 4
A92: 0
A93: 2
A95: 0
A96: 1
A97: 2
A98: 3
A99: 4
A100: 5
A101: 6

Sheet Tabella_prezzi (hidden)
A1: N° | C1: Attributo | D1: Valore inserito | E1: N° | F1: Codice Convenzione | G1: Qty: | H1: Description: | I1: Sku Number: | J1: Sku Number:
A2: L8N01 | B2: 1 | C2: Server rackable high-density | D2: 10030.79 | E2: L8N01 | F2: TS4L8-SRV | G2: 1 | H2: DELL PowerEdge C6400 con 4 x DELL PowerEdge C6525 | I2: L8N01-ServerC6525 | K2: DELL
A3: L8N02 | B3: 2 | C3: Kit n. 1 Processore aggiuntivo | D3: 572.17 | E3: L8N02 | F3: TS4L8-CPU | G3: 1 | H3: AMD7413 2.65GHz,24C/48T,128M,180W,3200 | I3: L8N02-OpzCPU | J3: 338-BWBE | K3: DELL
A4: L8N03 | B4: 3 | C4: OpzRAM32GB | D4: 263.64 | E4: L8N03 | F4: TS4L8-RAM32 | G4: 1 | H4: 32GB - 2Rx4 DDR4 RDIMM 3200MHz | I4: L8N03-OpzRAM32GB | J4: AA799087 | K4: DELL
A5: L8N04 | B5: 4 | C5: OpzRAM64GB | D5: 311.08 | E5: L8N04 | F5: TS4L8-RAM64 | G5: 1 | H5: 64GB - 2RX4 DDR4 RDIMM 3200MHz | I5: L8N04-OpzRAM64GB | J5: AA799110 | K5: DELL
A6: L8N05 | B6: 5 | C6: Opz10Gigabit BaseT | D6: 144.43 | E6: L8N05 | F6: TS4L8-LAN_BaseT | G6: 1 | H6: Intel X710-T2L Dual Port 10GbE BASE-T Adapter, PCIe Low Profile + Optics | I6: L8N05-Opz10Gigabit BaseT | J6: 540-BBHB | K6: DELL
A7: L8N06 | B7: 6 | C7: OpzGigabit10Gbps | D7: 149.99 | E7: L8N06 | F7: TS4L8-LAN10-L | G7: 1 | H7: Intel Ethernet XXV710 Dual Port 10 SFP28 Adapter, PCIe Low Profile + optics | I7: L8N06-OpzGigabit10GbpsLP | J7: 540-BBML | K7: DELL
G8: 2 | J8: 407-BCBN | K8: DELL
A9: L8N07 | B9: 7 | C9: OpzGigabit25Gbps | D9: 233.31 | E9: L8N07 | F9: TS4L8-LAN25-L | G9: 1 | H9: Intel Ethernet XXV710 Dual Port 25GbE SFP28 Adapter, PCIe Low Profile + Optics | I9: L8N07-OpzGigabit25GbpsLP | J9: 540-BCNJ | K9: DELL
G10: 2 | J10: 407-BCHI | K10: DELL
A11: L8N08 | B11: 8 | C11: OpzGigabit10Gbps CNA | D11: 149.99 | E11: L8N08 | F11: TS4L8-CNA10-L | G11: 1 | H11: QLogic FastLinQ 41262 Dual Port 25Gb SFP28 Adapter, Low Profile + Optics | I11: L8N08-OpzCNA10GbpsLP | J11: 540-BCNS | K11: DELL
G12: 2 | J12: 407-BCBN | K12: DELL
A13: L8N09 | B13: 9 | C13: OpzHDD1TB | D13: 83.33 | E13: L8N09 | F13: TS4L8-HDD1TB | G13: 1 | H13: 1.2TB 10K RPM SAS ISE 12Gbps 512n 2.5in Hot-plug Hard Drive | I13: L8N09-OpzHDD1TB | J13: 400-ATJL | K13: DELL
A14: L8N10 | B14: 10 | C14: OpzHDD2TB | D14: 166.65 | E14: L8N10 | F14: TS4L8-HDD2TB | G14: 1 | H14: 2.4TB 10k 512e SAS ISE 12Gbps 2.5in Hot Plug Hard Drive | I14: L8N10-OpzHDD2TB | J14: 400-ATII | K14: DELL
A15: L8N11 | B15: 11 | C15: OpzSSD-RI1,6TB | D15: 466.62 | E15: L8N11 | F15: TS4L8-RI1600GB | G15: 1 | H15: 1.92TB SSD SAS ISE RI 12Gbps 512e 2.5in Hot-Plug 1 DWP | I15: L8N11-OpzSSD-RI1,6TB | J15: 400-BFZC | K15: DELL
A16: L8N12 | B16: 12 | C16: OpzSSD-RI3,8TB | D16: 944.35 | E16: L8N12 | F16: TS4L8-RI3,8TB | G16: 1 | H16: 3.84TB SSD SAS ISE RI 12Gbps 512e 2.5in PM6 Hot-Plug 1 DWPD | I16: L8N12-OpzSSD-RI3,8TB | J16: 400-AZIH | K16: DELL
A17: L8N13 | B17: 13 | C17: OpzSSD-MU1.6TB | D17: 636.3 | E17: L8N13 | F17: TS4L8-MU1.6TB | G17: 1 | H17: 1.6TB SSD SAS ISE MU 12Gbps 512e 2.5in Hot-Plug PM6 3 DWPD | I17: L8N13-OpzSSD-MU1.6TB | J17: 400-BBPN | K17: DELL
A18: L8N14 | B18: 14 | C18: OpzSSD-RI800GB | D18: 318.15 | E18: L8N14 | F18: TS4L8-RI800GB | G18: 1 | H18: 960GB SSD SAS ISE RI 12Gbps 512e 2.5in Hot-Plug 1 DWPD | I18: L8N14-OpzSSD-RI800GB | J18: 400-BCNN | K18: DELL
A19: L8N15 | B19: 15 | C19: OpzSSD-MU800GB | D19: 371.18 | E19: L8N15 | F19: TS4L8-MU800GB | G19: 1 | H19: SSD 960GB SAS RI 12Gbps 2.5in Hot-plug, 1 DWPD | I19: L8N15-OpzSSD-RI400GB | J19: 400-BKYR | K19: DELL
A20: L8N16 | B20: 16 | C20: OpzUps (3000VA) | D20: 386.02 | E20: L8N16 | F20: TS4L8-UPS | G20: 1 | H20: Dispositivo UPS di tipo On-line doppia conversione, strutturato per il montaggio a rack da 19” | I20: L8N16-OpzUps | J20: RPMM9/3K | K20: DELL
K21: DELL
A22: L8N17 | B22: 17 | C22: OpzGUI | D22: 491.62 | E22: L8N17 | F22: TS4L8-GUI | G22: 1 | H22: Console KVM GUI da rack | I22: L8N17-OpzGUI | J22: F9857N | K22: DELL
A23: L8N18 | B23: 18 | C23: OpzKVM | D23: 552.47 | E23: L8N18 | F23: TS4L8-SWKVM | G23: 1 | H23: KVM Switch IP per GUI 16P | I23: L8N18-OpzKVM | J23: T9816NIP | K23: DELL
A24: L8N19 | B24: 19 | C24: OpzOpenSource | D24: 31.82 | E24: L8N19 | F24: TS4L8-OpenSource | G24: 1 | H24: Ubuntu 22.04 LTS 64 Bit | I24: L8N19-OpzOpenSource | J24: 634-BSFX | K24: DELL
A25: L8N20 | B25: 24 | C25: OpzHDDRetention | D25: 59.6 | E25: L8N24 | F25: TS4L8-HDRTN36 | G25: 1 | H25: Hard Disk Retention 36 mesi | I25: L8N20-OpzHDDRetention | J25: 785-10921 | K25: DELL
A26: L8N20e | B26: 24 | C26: OpzHDDRetention | D26: 98.93 | E26: L8N24 | F26: TS4L8-HDRTN60 | G26: 1 | H26: Hard Disk Retention 60 mesi | I26: L8N20e-OpzHDDRetention | J26: 785-10921 | K26: DELL
A27: L8N21 | B27: 25 | C27: OpzEstensione24 | D27: 719.32 | E27: L8N25 | F27: TS4L8-Estensione24 | G27: 1 | H27: Estensione della manutenzione in garanzia per ulteriori 24 mesi | I27: L8N21-OpzEstensione24 | J27: 742-10105 | K27: DELL
A28: L8N22 | B28: 26 | C28: OpzRack | D28: 579.63 | E28: L8N22 | F28: TS4L8-RACK | G28: 1 | H28: Armadio Rack 42U | I28: L8N22-OpzRack | J28: P6142NCONSIP | K28: DELL
A29: L8N24 | B29: 27 | C29: OpzSSD-3,84TB | D29: 1213.65 | E29: L8N24 | F29: TS4L8-SSD3.84RI | G29: 1 | H29: 3.84TB SSD SATA Read Intensive 6Gbps 512e 2.5in Hot-Plug | I29: L8N24-OpzSSD3.84RI | K29: DELL
A30: L8N25 | B30: 26 | C30: OpzSSD-1,92TB | D30: 610.2 | E30: L8N25 | F30: TS4L8-SSD1.92RI | G30: 1 | H30: 1.92TB SSD SATA Read Intensive 6Gbps 512e 2.5in Hot-Plug | I30: L8N25-OpzSSD1.92RI | J30: P6142NCONSIP | K30: DELL
A31: L8N26 | B31: 27 | C31: OpzCX6 | D31: 1305.45 | E31: L8N26 | F31: TS4L8-100GBs-INF | G31: 1 | H31: Mellanox ConnectX-6 Single Port HDR VPI Infiniband Adapter, PCIe Low Profile | I31: L8N26-Opz100GBs-INF | K31: DELL
A32: L8N27 | B32: 26 | C32: OpzCX6-100 | D32: 739.8 | E32: L8N27 | F32: TS4L8-100GBs-M | G32: 1 | H32: Mellanox ConnectX-6 DX Dual Port 100GbE QSFP56 Network Adapter, Low Profile | I32: L8N27-Opz100GBs-M | K32: DELL
A33: L8N28 | B33: 26 | C33: OpzOT100GB | D33: 484.65 | E33: L8N28 | F33: TS4L8-OT100GB | G33: 1 | H33: Dell EMC PowerEdge QSFP28 SR4 100GbE 85C optic | I33: L8N28-OpzOT100GB | K33: DELL
